Workbook

Sheet Juni2010 (hidden)
A1: Løn | B1: 1 juni 2010 - 30 juni 2010 | O1: Time beregning:
A2: Lønart | F2: 3025 | G2: 3425 | H2: 3426 | I2: 3600 | J2: 3602 | K2: 3605 | L2: 9091 | M2: 9092 | O2: Betalt pause ved vagt over 5 timer | S2: 00:25:00 | T2: minutter | U2: 00:00:00 | V2: 06:00:00 | W2: 18:00:00 | X2: 14:00:00
A3: Dato | B3: Dag | D3: Start | E3: Slut | F3: Time SID | G3: Overtid 1-3 time | H3: Overtid 4 - time | I3: Aftenstillæg | J3: Nattillæg 00-06 | K3: Søndags tillæg
A4: 2010-06-01 | B4: =PROPER(TEXT(A4,"ddd")) -> Ti | C4: =HelligdagsNavn(A4,0,0) ->  | D4: 00:01:00 | E4: 13:00:00 | F4: =IF(D4="","",(E4-D4)+(D4>E4)) -> 0.5409722222 | I4: =IF(D4<>"",IF(WEEKDAY(A4,2)<>6,IF(D4>E4,(E4-MAX(D4,(18/24))+(D4>E4))-E4,IF(E4>W$2,(E4-MAX(D4,(18/24))),"")),IF(D4>E4,(E4-MAX(D4,(14/24))+(D4>E4))-E4,IF(E4>X$2,(E4-MAX(D4,(14/24))),""))),"") ->  | J4: =IF(F4<>"",IF(Q4<V$2,(V$2-Q4),IF(T4<V$2,(T4-U$2),"")),"") -> 05:59:00 | K4: =IF(F4<>0,IF(WEEKDAY(A4,2)=7,F4,""),"") ->  | L4: =IF(SUM(G4:H4)=0,"",SUM(G4:H4)) ->  | O4: =IF(D4="","",HOUR(D4)) -> 0 | P4: =IF(D4="","",MINUTE(D4)) -> 1 | Q4: =IF(D4="","",TIME(HOUR(D4),MINUTE(D4),0)) -> 00:01:00 | R4: =IF(E4="","",HOUR(E4)) -> 13 | S4: =IF(E4="","",MINUTE(E4)) -> 0 | T4: =TIME(HOUR(E4),MINUTE(E4),0) -> 13:00:00
A5: 2010-04-02 | B5: =PROPER(TEXT(A5,"ddd")) -> Fr | C5: =HelligdagsNavn(A5,0,0) -> Langfredag | D5: 10:00:00 | E5: 18:30:00 | F5: 0.3541666667 | I5: 00:30:00 | O5: 10 | P5: 0 | Q5: 10:00:00 | R5: 18 | S5: 30 | T5: =TIME(HOUR(E5),MINUTE(E5),0) -> 18:30:00
A6: 2010-04-03 | B6: =PROPER(TEXT(A6,"ddd")) -> Lø | T6: =TIME(HOUR(E6),MINUTE(E6),0) -> 00:00:00
A7: 2010-04-04 | B7: Sø | C7: Påskedag | T7: =TIME(HOUR(E7),MINUTE(E7),0) -> 00:00:00
A8: 2010-04-05 | B8: Ma | C8: 2. Påskedag | T8: =TIME(HOUR(E8),MINUTE(E8),0) -> 00:00:00
A9: 2010-04-06 | B9: Ti | T9: =IF(E9="","",TIME(HOUR(E9),MINUTE(E9),0)) -> 
A10: 2010-04-07 | B10: On
A11: 2010-04-08 | B11: To
A12: 2010-04-09 | B12: Fr
A13: 2010-04-10 | B13: Lø
A14: 2010-04-11 | B14: Sø
A15: 2010-04-12 | B15: Ma
A16: 2010-04-13 | B16: Ti
A17: 2010-04-14 | B17: On
A18: 2010-04-15 | B18: To
A19: 2010-04-16 | B19: Fr
A20: 2010-04-17 | B20: Lø
A21: 2010-04-18 | B21: Sø
A22: 2010-04-19 | B22: Ma
A23: 2010-04-20 | B23: Ti
A24: 2010-04-21 | B24: On
A25: 2010-04-22 | B25: To
A26: 2010-04-23 | B26: Fr
A27: 2010-04-24 | B27: Lø
A28: 2010-04-25 | B28: Sø
A29: 2010-04-26 | B29: Ma
A30: 2010-04-27 | B30: Ti
A31: 2010-04-28 | B31: On
A32: 2010-04-29 | B32: =IF(A32="","",PROPER(TEXT(A32,"ddd"))) -> To
A33: 2010-04-30 | B33: =IF(A33="","",PROPER(TEXT(A33,"ddd"))) -> Fr | C33: Store Bededag
A35: Total timer | F35: =IF(SUM(F9:F34)<>"0",SUM(F4:F34),"") -> 0.8951388889 | G35: =IF(SUM(G4:G34)<>"0",SUM(G4:G34),"") -> 0 | H35: 0 | I35: 0.02083333333 | J35: 0.2493055556 | K35: 0 | L35: =SUM(L4:L34) -> 0 | M35: =SUM(M4:M34) -> 0
A36: Timer 1/100 | F36: =IF(F35<>"",ROUND(F35*24,2),"") -> 21.48 | G36: =IF(G35<>"",ROUND(G35*24,2),"") -> 0 | H36: 0 | I36: 0.5 | J36: 5.98 | K36: 0 | L36: 0 | M36: 0
A37: Satser | F37: =Satser!B7 -> 125.76 | G37: =Satser!B9 -> 59.81 | H37: =Satser!B12 -> 119.62 | I37: 18.8 | J37: 21.81 | K37: 28.68
F38: =IF(F35<>"",F36*F37,"") -> 2701.3248 | G38: =IF(G35<>"",G36*G37,"") -> 0 | H38: 0 | I38: 9.4 | J38: 130.4238 | K38: 0
A40: Lønart
A41: 3025 | F41: =F35 -> 0.8951388889
A42: 3425 | F42: =G35 -> 0
A43: 3426 | F43: =H35 -> 0
A44: Timer | F44: =SUM(F41:F43) -> 0.8951388889 | G44: =IF(F44<>"",ROUND(F44*24,2),"") -> 21.48
G45: =F37*G44 -> 2701.3248

Sheet september2010
AD1: Faktor: | AE1: 1 | AF1: 1.5 | AG1: 2
Y2: Aften tillæg | Z2: Fra kl. | AA2: 16:00:00 | AB2: Til kl. | AC2: 00:00:00
Y3: Nat tillæg | Z3: Fra kl. | AA3: 1 | AB3: Til kl. | AC3: 06:00:00
Y4: Lørdag | Z4: Fra kl. | AA4: 14:00:00 | AB4: Til kl. | AC4: 00:00:00
Y5: Grundlovsdag | Z5: Fra kl. | AA5: 12:00:00 | AB5: Til kl. | AC5: 00:00:00
A9: Løn | B9: =PROPER(TEXT(A12,"dd mmmm åååå")) & PROPER(TEXT(A42," - dd mmmm åååå")) -> 06 September 2010 - 03 Oktober 2010 | H9: Uge : | K9: =IF(A12="","",TRUNC((A12-WEEKDAY(A12,2)-DATE(YEAR(A12+4-WEEKDAY(A12,2)),1,-10))/7)) -> 36 | L9: - | P9: =IF(A36="","",TRUNC((A36-WEEKDAY(A36,2)-DATE(YEAR(A36+4-WEEKDAY(A36,2)),1,-10))/7)) -> 39 | Z9: Time beregning:
A10: Lønart | Z10: Betalt pause ved vagt over 5 timer | AD10: 00:25:00 | AE10: minutter | AF10: 00:00:00 | AG10: 06:00:00 | AH10: 17:00:00 | AI10: 14:00:00
A11: Dato | B11: Dag | D11: Start | E11: Slut | F11: Time SID | G11: Pause | H11: Normal Timer 07-16 | I11: Optjent | J11: Pause | K11: Aftenstillæg alle dage 16-24 | M11: Optjent | N11: Pause | O11: Nattillæg 24-07 | Q11: Optjent | R11: Lørdag tillæg 06 - 06 | S11: Søndag tillæg 06-06 | T11: Samlet optjent | U11: normal tid | V11: Optjent afspadsering | W11: Afholdt afspadsering
A12: 2010-09-06 | B12: =PROPER(TEXT(A12,"ddd")) -> Ma | C12: =HelligdagsNavn(A12,0,0) ->  | D12: 22:00:00 | E12: 07:00:00 | F12: =IF(D12="","",(E12-D12)+(D12>E12)) -> 0.375 | H12: =ColTime(TIME(7,0,0),TIME(16,0,0),D12,E12)-G12 -> 00:00:00 | I12: =IF(WEEKDAY(A12,2)<6,H12*$AE$1,IF(WEEKDAY(A12,2)=6,H12*$AF$1,IF(WEEKDAY(A12,2)=7,H12*$AG$1,""))) -> 00:00:00 | J12: 01:00:00 | K12: =IF(D12="","",(IF(E12-MAX(D12,(16/24))+(E12<D12)<0,0,E12-MAX(D12,(16/24))+(E12<D12)))-(IF((E12-MAX(D12,(24/24))+(E12<D12))<0,0,(E12-MAX(D12,(24/24))+(E12<D12)))))-J12 -> 01:00:00 | M12: =IF(WEEKDAY(A12,2)<6,K12*24*$AF$1,IF(WEEKDAY(A12,2)>5,K12*24*$AG$1,""))/24 -> 01:30:00 | O12: =IF(F12="","",IF((E12-MAX(D12,(24/24))+(D12>E12))<0,0,(IF(E12<D12,IF(E12>7/24,7/24,E12),E12)-MAX(D12,(24/24)))+(D12>E12))+(7/24)-MIN(D12,(7/24)))-N12 -> 07:00:00 | Q12: =IF(WEEKDAY(A12,2)<6,O12*24*$AF$1,IF(WEEKDAY(A12,2)>5,O12*24*$AG$1,""))/24 -> 10:30:00 | S12: =IF(D12="","",IF(D12<6/24,6/24-D12,"")) ->  | T12: =I12+M12+Q12 -> 12:00:00 | U12: =IF(WEEKDAY(A12,2)<5,Satser!$B$23,IF(WEEKDAY(A12,2)=5,Satser!$B$24,"")) -> 07:45:00 | V12: =IF(F12="","",IF(F12<>0,I12+M12+Q12-U12,"")) -> 04:15:00 | Z12: =IF(D12="","",HOUR(D12)) -> 22 | AA12: =IF(D12="","",MINUTE(D12)) -> 0 | AB12: =IF(D12="","",TIME(HOUR(D12),MINUTE(D12),0)) -> 22:00:00 | AC12: =IF(E12="","",HOUR(E12)) -> 7 | AD12: =IF(E12="","",MINUTE(E12)) -> 0 | AE12: =IF(E12="","",TIME(HOUR(E12),MINUTE(E12),0)) -> 07:00:00
A13: =A12+1 -> 2010-09-07 | B13: =PROPER(TEXT(A13,"ddd")) -> Ti | C13: =HelligdagsNavn(A13,0,0) ->  | D13: 07:00:00 | E13: 16:00:00 | F13: 0.375 | G13: 01:00:00 | H13: =ColTime(TIME(7,0,0),TIME(16,0,0),D13,E13)-G13 -> 08:00:00 | I13: =IF(WEEKDAY(A13,2)<6,H13*$AE$1,IF(WEEKDAY(A13,2)=6,H13*$AF$1,IF(WEEKDAY(A13,2)=7,H13*$AG$1,""))) -> 08:00:00 | K13: =IF(D13="","",(IF(E13-MAX(D13,(16/24))+(E13<D13)<0,0,E13-MAX(D13,(16/24))+(E13<D13)))-(IF((E13-MAX(D13,(24/24))+(E13<D13))<0,0,(E13-MAX(D13,(24/24))+(E13<D13)))))-J13 -> 00:00:00 | M13: 00:00:00 | O13: =IF(F13="","",IF((E13-MAX(D13,(24/24))+(D13>E13))<0,0,(IF(E13<D13,IF(E13>7/24,7/24,E13),E13)-MAX(D13,(24/24)))+(D13>E13))+(7/24)-MIN(D13,(7/24)))-N13 -> 00:00:00 | Q13: 00:00:00 | T13: 08:00:00 | U13: =IF(WEEKDAY(A13,2)<5,Satser!$B$23,IF(WEEKDAY(A13,2)=5,Satser!$B$24,"")) -> 07:45:00 | V13: 00:15:00 | Z13: 7 | AA13: 0 | AB13: 07:00:00 | AC13: 16 | AD13: 0 | AE13: 16:00:00
A14: =A13+1 -> 2010-09-08 | B14: =PROPER(TEXT(A14,"ddd")) -> On | D14: 15:00:00 | E14: 07:00:00 | F14: 0.6666666667 | H14: =ColTime(TIME(7,0,0),TIME(16,0,0),D14,E14) -> 01:00:00 | I14: 01:00:00 | K14: 08:00:00 | M14: 12:00:00 | O14: 07:00:00 | Q14: 10:30:00 | T14: 23:30:00 | U14: =IF(WEEKDAY(A14,2)<5,Satser!$B$23,IF(WEEKDAY(A14,2)=5,Satser!$B$24,"")) -> 07:45:00 | V14: 15:45:00 | Z14: 15 | AA14: 0 | AB14: 15:00:00 | AC14: 7 | AD14: 0 | AE14: 07:00:00
A15: 2010-09-09 | B15: To | D15: 06:30:00 | E15: 15:00:00 | F15: 0.3541666667 | H15: =ColTime(TIME(7,0,0),TIME(16,0,0),D15,E15) -> 08:00:00 | I15: 08:00:00 | K15: 00:00:00 | M15: 00:00:00 | O15: 00:30:00 | Q15: 00:45:00 | T15: 08:45:00 | U15: =IF(WEEKDAY(A15,2)<5,Satser!$B$23,IF(WEEKDAY(A15,2)=5,Satser!$B$24,"")) -> 07:45:00 | V15: 01:00:00 | Z15: 6 | AA15: 30 | AB15: 06:30:00 | AC15: 15 | AD15: 0 | AE15: 15:00:00
A16: 2010-09-10 | B16: Fr | D16: 22:00:00 | E16: 11:00:00 | F16: 0.5416666667 | H16: =ColTime(TIME(7,0,0),TIME(16,0,0),D16,E16) -> 04:00:00 | I16: 04:00:00 | K16: 02:00:00 | M16: 03:00:00 | O16: 07:00:00 | Q16: 10:30:00 | R16: =IF(E16<D16,IF(E16>6/24,E16-6/24,""),"") -> 0.2083333333 | T16: 17:30:00 | U16: =IF(WEEKDAY(A16,2)<5,Satser!$B$23,IF(WEEKDAY(A16,2)=5,Satser!$B$24,"")) -> 06:00:00 | V16: 11:30:00 | Z16: 22 | AA16: 0 | AB16: 22:00:00 | AC16: 11 | AD16: 0 | AE16: 11:00:00 | AI16: =WEEKDAY(A16,2) -> 5
A17: 2010-09-11 | B17: Lø | D17: 22:00:00 | E17: 11:00:00 | F17: 0.5416666667 | H17: =ColTime(TIME(7,0,0),TIME(16,0,0),D17,E17) -> 04:00:00 | I17: 06:00:00 | K17: 02:00:00 | M17: 04:00:00 | O17: 07:00:00 | Q17: 14:00:00 | R17: =IF(D17="","",IF((E17-MAX(D17,(6/24))+(D17>E17))<0,0,(IF(E17<D17,IF(E17>6/24,6/24,E17),E17)-MAX(D17,(6/24)))+(D17>E17))+(6/24)-MIN(E17,(6/24))) -> 0.3333333333 | S17: =IF(E17<D17,IF(E17>6/24,E17-6/24,""),"") -> 0.2083333333 | T17: 1 | U17: =IF(WEEKDAY(A17,2)<5,Satser!$B$23,IF(WEEKDAY(A17,2)=5,Satser!$B$24,0)) -> 00:00:00 | V17: 1 | Z17: 22 | AA17: 0 | AB17: 22:00:00 | AC17: 11 | AD17: 0 | AE17: 11:00:00
A18: 2010-09-12 | B18: Sø | D18: 23:59:00 | E18: 13:00:00 | F18: 0.5423611111 | G18: 01:00:00 | H18: =ColTime(TIME(7,0,0),TIME(16,0,0),D18,E18) -> 06:00:00 | I18: 12:00:00 | K18: 00:01:00 | M18: 00:02:00 | O18: 07:00:00 | Q18: 14:00:00 | R18: =IF(D18="","",IF(D18<6/24,IF(E18<6/24,6/24-D18-(6/24-E18),6/24-D18),"00:00")) -> 00:00 | S18: =IF(D18="","",IF((E18-MAX(D18,(6/24))+(D18>E18))<0,0,(IF(E18<D18,IF(E18>6/24,6/24,E18),E18)-MAX(D18,(6/24)))+(D18>E18))+(6/24)-MIN(E18,(6/24))) -> 0.2506944444 | T18: 1.084722222 | U18: =IF(WEEKDAY(A18,2)<5,Satser!$B$23,IF(WEEKDAY(A18,2)=5,Satser!$B$24,0)) -> 00:00:00 | V18: 1.084722222 | Z18: 23 | AA18: 59 | AB18: 23:59:00 | AC18: 13 | AD18: 0 | AE18: 13:00:00
V19: =IF(F19="","",IF(F19<>0,IF(C19<>"",IF(R19+S19=0,Satser!B$23,((R19+S19)*24)*(24/1440)+Satser!B$23),IF(R19+S19=0,"",((R19+S19)*24)*(24/1440))),"")) -> 
A20: =A18+1 -> 2010-09-13 | B20: =PROPER(TEXT(A20,"ddd")) -> Ma | C20: =HelligdagsNavn(A20,0,0) ->  | F20: =IF(D20="","",(E20-D20)+(D20>E20)) ->  | K20: =IF(D20="","",(IF(E20-MAX(D20,(17/24))+(E20<D20)<0,0,E20-MAX(D20,(17/24))+(E20<D20)))-(IF((E20-MAX(D20,(23/24))+(E20<D20))<0,0,(E20-MAX(D20,(23/24))+(E20<D20))))) ->  | O20: =IF(F20="","",IF((E20-MAX(D20,(23/24))+(D20>E20))<0,0,(IF(E20<D20,IF(E20>6/24,6/24,E20),E20)-MAX(D20,(23/24)))+(D20>E20))+(6/24)-MIN(D20,(6/24))) ->  | S20: =IF(D20="","",IF(D20<6/24,6/24-D20,"")) ->  | V20: =IF(F20="","",IF(F20<>0,IF(C20<>"",IF(R20+S20=0,Satser!B$23,((R20+S20)*24)*(24/1440)+Satser!B$23),IF(R20+S20=0,"",((R20+S20)*24)*(24/1440))),"")) -> 
A21: =A20+1 -> 2010-09-14 | B21: =PROPER(TEXT(A21,"ddd")) -> Ti | C21: =HelligdagsNavn(A21,0,0) ->  | F21: =IF(D21="","",(E21-D21)+(D21>E21)) ->  | V21: =IF(F21="","",IF(F21<>0,IF(C21<>"",IF(R21+S21=0,Satser!B$23,((R21+S21)*24)*(24/1440)+Satser!B$23),IF(R21+S21=0,"",((R21+S21)*24)*(24/1440))),"")) -> 
A22: =A21+1 -> 2010-09-15 | B22: =PROPER(TEXT(A22,"ddd")) -> On | V22: =IF(F22="","",IF(F22<>0,IF(C22<>"",IF(R22+S22=0,Satser!B$23,((R22+S22)*24)*(24/1440)+Satser!B$23),IF(R22+S22=0,"",((R22+S22)*24)*(24/1440))),"")) -> 
A23: 2010-09-16 | B23: To | V23: =IF(F23="","",IF(F23<>0,IF(C23<>"",IF(R23+S23=0,Satser!B$23,((R23+S23)*24)*(24/1440)+Satser!B$23),IF(R23+S23=0,"",((R23+S23)*24)*(24/1440))),"")) -> 
A24: 2010-09-17 | B24: Fr | R24: =IF(D24="","",IF(E24<D24,IF(E24>6/24,E24-6/24,""),"")) ->  | V24: =IF(F24="","",IF(F24<>0,IF(C24<>"",IF(R24+S24=0,Satser!B$23,((R24+S24)*24)*(24/1440)+Satser!B$23),IF(R24+S24=0,"",((R24+S24)*24)*(24/1440))),"")) -> 
A25: 2010-09-18 | B25: Lø | R25: =IF(D25="","",IF((E25-MAX(D25,(6/24))+(D25>E25))<0,0,(IF(E25<D25,IF(E25>6/24,6/24,E25),E25)-MAX(D25,(6/24)))+(D25>E25))+(6/24)-MIN(E25,(6/24))) ->  | S25: =IF(E25<D25,IF(E25>6/24,E25-6/24,""),"") ->  | V25: =IF(F25="","",IF(F25<>0,IF(C25<>"",IF(R25+S25=0,Satser!B$23,((R25+S25)*24)*(24/1440)+Satser!B$23),IF(R25+S25=0,"",((R25+S25)*24)*(24/1440))),"")) -> 
A26: 2010-09-19 | B26: Sø | R26: =IF(D26="","",IF(D26<6/24,IF(E26<6/24,6/24-D26-(6/24-E26),6/24-D26),"00:00")) ->  | S26: =IF(D26="","",IF((E26-MAX(D26,(6/24))+(D26>E26))<0,0,(IF(E26<D26,IF(E26>6/24,6/24,E26),E26)-MAX(D26,(6/24)))+(D26>E26))+(6/24)-MIN(E26,(6/24))) ->  | V26: =IF(F26="","",IF(F26<>0,IF(C26<>"",IF(R26+S26=0,Satser!B$23,((R26+S26)*24)*(24/1440)+Satser!B$23),IF(R26+S26=0,"",((R26+S26)*24)*(24/1440))),"")) -> 
V27: =IF(F27="","",IF(F27<>0,IF(C27<>"",IF(R27+S27=0,Satser!B$23,((R27+S27)*24)*(24/1440)+Satser!B$23),IF(R27+S27=0,"",((R27+S27)*24)*(24/1440))),"")) -> 
A28: =A26+1 -> 2010-09-20 | B28: =PROPER(TEXT(A28,"ddd")) -> Ma | C28: =HelligdagsNavn(A28,0,0) ->  | K28: =IF(D28="","",(IF(E28-MAX(D28,(17/24))+(E28<D28)<0,0,E28-MAX(D28,(17/24))+(E28<D28)))-(IF((E28-MAX(D28,(23/24))+(E28<D28))<0,0,(E28-MAX(D28,(23/24))+(E28<D28))))) ->  | O28: =IF(F28="","",IF((E28-MAX(D28,(23/24))+(D28>E28))<0,0,(IF(E28<D28,IF(E28>6/24,6/24,E28),E28)-MAX(D28,(23/24)))+(D28>E28))+(6/24)-MIN(D28,(6/24))) ->  | S28: =IF(D28="","",IF(D28<6/24,6/24-D28,"")) ->  | V28: =IF(F28="","",IF(F28<>0,IF(C28<>"",IF(R28+S28=0,Satser!B$23,((R28+S28)*24)*(24/1440)+Satser!B$23),IF(R28+S28=0,"",((R28+S28)*24)*(24/1440))),"")) -> 
A29: =A28+1 -> 2010-09-21 | B29: =PROPER(TEXT(A29,"ddd")) -> Ti | C29: =HelligdagsNavn(A29,0,0) ->  | V29: =IF(F29="","",IF(F29<>0,IF(C29<>"",IF(R29+S29=0,Satser!B$23,((R29+S29)*24)*(24/1440)+Satser!B$23),IF(R29+S29=0,"",((R29+S29)*24)*(24/1440))),"")) -> 
A30: =A29+1 -> 2010-09-22 | B30: =PROPER(TEXT(A30,"ddd")) -> On | V30: =IF(F30="","",IF(F30<>0,IF(C30<>"",IF(R30+S30=0,Satser!B$23,((R30+S30)*24)*(24/1440)+Satser!B$23),IF(R30+S30=0,"",((R30+S30)*24)*(24/1440))),"")) -> 
A31: 2010-09-23 | B31: To | V31: =IF(F31="","",IF(F31<>0,IF(C31<>"",IF(R31+S31=0,Satser!B$23,((R31+S31)*24)*(24/1440)+Satser!B$23),IF(R31+S31=0,"",((R31+S31)*24)*(24/1440))),"")) -> 
A32: 2010-09-24 | B32: Fr | D32: 22:00:00 | E32: 11:00:00 | F32: 0.5416666667 | K32: 01:00:00 | O32: 07:00:00 | R32: =IF(E32<D32,IF(E32>6/24,E32-6/24,""),"") -> 0.2083333333 | V32: =IF(F32="","",IF(F32<>0,IF(C32<>"",IF(R32+S32=0,Satser!B$23,((R32+S32)*24)*(24/1440)+Satser!B$23),IF(R32+S32=0,"",((R32+S32)*24)*(24/1440))),"")) -> 02:00:00 | Z32: 22 | AA32: 0 | AB32: 22:00:00 | AC32: 11 | AD32: 0 | AE32: 11:00:00
A33: 2010-09-25 | B33: Lø | D33: 22:00:00 | E33: 11:00:00 | F33: 0.5416666667 | K33: 01:00:00 | O33: 07:00:00 | R33: =IF(D33="","",IF((E33-MAX(D33,(6/24))+(D33>E33))<0,0,(IF(E33<D33,IF(E33>6/24,6/24,E33),E33)-MAX(D33,(6/24)))+(D33>E33))+(6/24)-MIN(E33,(6/24))) -> 0.3333333333 | S33: =IF(E33<D33,IF(E33>6/24,E33-6/24,""),"") -> 0.2083333333 | V33: =IF(F33="","",IF(F33<>0,IF(C33<>"",IF(R33+S33=0,Satser!B$23,((R33+S33)*24)*(24/1440)+Satser!B$23),IF(R33+S33=0,"",((R33+S33)*24)*(24/1440))),"")) -> 05:12:00 | Z33: 22 | AA33: 0 | AB33: 22:00:00 | AC33: 11 | AD33: 0 | AE33: 11:00:00
A34: 2010-09-26 | B34: Sø | D34: 23:59:00 | E34: 13:00:00 | F34: 0.5423611111 | K34: 00:00:00 | O34: 06:01:00 | R34: =IF(D34="","",IF(D34<6/24,IF(E34<6/24,6/24-D34-(6/24-E34),6/24-D34),"00:00")) -> 00:00 | S34: =IF(D34="","",IF((E34-MAX(D34,(6/24))+(D34>E34))<0,0,(IF(E34<D34,IF(E34>6/24,6/24,E34),E34)-MAX(D34,(6/24)))+(D34>E34))+(6/24)-MIN(E34,(6/24))) -> 0.2506944444 | V34: =IF(F34="","",IF(F34<>0,IF(C34<>"",IF(R34+S34=0,Satser!B$23,((R34+S34)*24)*(24/1440)+Satser!B$23),IF(R34+S34=0,"",((R34+S34)*24)*(24/1440))),"")) -> 02:24:24 | Z34: 23 | AA34: 59 | AB34: 23:59:00 | AC34: 13 | AD34: 0 | AE34: 13:00:00
V35: =IF(F35="","",IF(F35<>0,IF(C35<>"",IF(R35+S35=0,Satser!B$23,((R35+S35)*24)*(24/1440)+Satser!B$23),IF(R35+S35=0,"",((R35+S35)*24)*(24/1440))),"")) -> 
A36: =A34+1 -> 2010-09-27 | B36: =PROPER(TEXT(A36,"ddd")) -> Ma | C36: =HelligdagsNavn(A36,0,0) ->  | D36: 00:01:00 | E36: 13:00:00 | F36: 0.5409722222 | K36: =IF(D36="","",(IF(E36-MAX(D36,(17/24))+(E36<D36)<0,0,E36-MAX(D36,(17/24))+(E36<D36)))-(IF((E36-MAX(D36,(23/24))+(E36<D36))<0,0,(E36-MAX(D36,(23/24))+(E36<D36))))) -> 00:00:00 | O36: =IF(F36="","",IF((E36-MAX(D36,(23/24))+(D36>E36))<0,0,(IF(E36<D36,IF(E36>6/24,6/24,E36),E36)-MAX(D36,(23/24)))+(D36>E36))+(6/24)-MIN(D36,(6/24))) -> 05:59:00 | S36: =IF(D36="","",IF(D36<6/24,6/24-D36,"")) -> 05:59:00 | V36: =IF(F36="","",IF(F36<>0,IF(C36<>"",IF(R36+S36=0,Satser!B$23,((R36+S36)*24)*(24/1440)+Satser!B$23),IF(R36+S36=0,"",((R36+S36)*24)*(24/1440))),"")) -> 02:23:36 | Z36: 0 | AA36: 1 | AB36: 00:01:00 | AC36: 13 | AD36: 0 | AE36: 13:00:00
A37: =A36+1 -> 2010-09-28 | B37: =PROPER(TEXT(A37,"ddd")) -> Ti | C37: =HelligdagsNavn(A37,0,0) ->  | D37: 23:00:00 | E37: 05:00:00 | F37: 0.25 | K37: 00:00:00 | O37: 06:00:00 | V37: =IF(F37="","",IF(F37<>0,IF(C37<>"",IF(R37+S37=0,Satser!B$23,((R37+S37)*24)*(24/1440)+Satser!B$23),IF(R37+S37=0,"",((R37+S37)*24)*(24/1440))),"")) ->  | Z37: 23 | AA37: 0 | AB37: 23:00:00 | AC37: 5 | AD37: 0 | AE37: 05:00:00
A38: =A37+1 -> 2010-09-29 | B38: =PROPER(TEXT(A38,"ddd")) -> On | D38: 15:00:00 | E38: 07:00:00 | F38: 0.6666666667 | K38: 06:00:00 | O38: 07:00:00 | V38: =IF(F38="","",IF(F38<>0,IF(C38<>"",IF(R38+S38=0,Satser!B$23,((R38+S38)*24)*(24/1440)+Satser!B$23),IF(R38+S38=0,"",((R38+S38)*24)*(24/1440))),"")) ->  | Z38: 15 | AA38: 0 | AB38: 15:00:00 | AC38: 7 | AD38: 0 | AE38: 07:00:00
A39: 2010-09-30 | B39: To | V39: =IF(F39="","",IF(F39<>0,IF(C39<>"",IF(R39+S39=0,Satser!B$23,((R39+S39)*24)*(24/1440)+Satser!B$23),IF(R39+S39=0,"",((R39+S39)*24)*(24/1440))),"")) -> 
A40: 2010-10-01 | B40: Fr | D40: 22:00:00 | E40: 11:00:00 | F40: 0.5416666667 | K40: 01:00:00 | O40: 07:00:00 | R40: =IF(E40<D40,IF(E40>6/24,E40-6/24,""),"") -> 0.2083333333 | V40: =IF(F40="","",IF(F40<>0,IF(C40<>"",IF(R40+S40=0,Satser!B$23,((R40+S40)*24)*(24/1440)+Satser!B$23),IF(R40+S40=0,"",((R40+S40)*24)*(24/1440))),"")) -> 02:00:00 | Z40: 22 | AA40: 0 | AB40: 22:00:00 | AC40: 11 | AD40: 0 | AE40: 11:00:00
A41: 2010-10-02 | B41: Lø | D41: 22:00:00 | E41: 11:00:00 | F41: 0.5416666667 | K41: 01:00:00 | O41: 07:00:00 | R41: =IF(D41="","",IF((E41-MAX(D41,(6/24))+(D41>E41))<0,0,(IF(E41<D41,IF(E41>6/24,6/24,E41),E41)-MAX(D41,(6/24)))+(D41>E41))+(6/24)-MIN(E41,(6/24))) -> 0.3333333333 | S41: =IF(E41<D41,IF(E41>6/24,E41-6/24,""),"") -> 0.2083333333 | V41: =IF(F41="","",IF(F41<>0,IF(C41<>"",IF(R41+S41=0,Satser!B$23,((R41+S41)*24)*(24/1440)+Satser!B$23),IF(R41+S41=0,"",((R41+S41)*24)*(24/1440))),"")) -> 05:12:00 | Z41: 22 | AA41: 0 | AB41: 22:00:00 | AC41: 11 | AD41: 0 | AE41: 11:00:00
A42: 2010-10-03 | B42: Sø | D42: 23:59:00 | E42: 13:00:00 | F42: 0.5423611111 | K42: 00:00:00 | O42: 06:01:00 | R42: =IF(D42="","",IF(D42<6/24,IF(E42<6/24,6/24-D42-(6/24-E42),6/24-D42),"00:00")) -> 00:00 | S42: =IF(D42="","",IF((E42-MAX(D42,(6/24))+(D42>E42))<0,0,(IF(E42<D42,IF(E42>6/24,6/24,E42),E42)-MAX(D42,(6/24)))+(D42>E42))+(6/24)-MIN(E42,(6/24))) -> 0.2506944444 | V42: =IF(F42="","",IF(F42<>0,IF(C42<>"",IF(R42+S42=0,Satser!B$23,((R42+S42)*24)*(24/1440)+Satser!B$23),IF(R42+S42=0,"",((R42+S42)*24)*(24/1440))),"")) -> 02:24:24 | Z42: 23 | AA42: 59 | AB42: 23:59:00 | AC42: 13 | AD42: 0 | AE42: 13:00:00
A43: Total timer | F43: =IF(SUM(F17:F42)<>"0",SUM(F12:F42),"") -> 8.105555556 | G43: =IF(SUM(G12:G42)<>"0",SUM(G12:G42),"") -> 0.08333333333 | H43: =IF(SUM(H12:H42)<>"0",SUM(H12:H42),"") -> 1.291666667 | K43: =IF(SUM(K12:K42)<>"0",SUM(K12:K42),"") -> 0.9590277778 | O43: =IF(SUM(O12:O42)<>"0",SUM(O12:O42),"") -> 3.938194444 | R43: 1.625 | S43: 1.626388889 | V43: =SUM(V12:V42) -> 4.349583333 | W43: =SUM(W12:W42) -> 0
A44: Timer 1/100 | F44: =IF(F43<>"",ROUND(F43*24,2),"") -> 194.53 | G44: =IF(G43<>"",ROUND(G43*24,2),"") -> 2 | H44: 31 | K44: =IF(K43<>"",ROUND(K43*24,2),"") -> 23.02 | O44: =IF(O43<>"",ROUND(O43*24,2),"") -> 94.52 | R44: 39 | S44: 39.03 | V44: 104.39 | W44: 0
A45: Satser | F45: =Satser!B7 -> 125.76 | G45: =Satser!B9 -> 59.81 | H45: =Satser!B12 -> 119.62 | K45: 18.8 | O45: 21.81 | R45: 28.68 | S45: 67
F46: =IF(F43<>"",F44*F45,"") -> 24464.0928 | G46: =IF(G43<>"",G44*G45,"") -> 119.62 | H46: 3708.22 | K46: =IF(K43<>"",K44*K45,"") -> 432.776 | O46: =IF(O43<>"",O44*O45,"") -> 2061.4812 | R46: 1118.52 | S46: =IF(S43<>"",S43*S45,"") -> 108.9680556
A48: Lønart
A49: 3025 | F49: =F43 -> 8.105555556
A50: 3425 | F50: =G43 -> 0.08333333333
A51: 3428 | F51: =H43 -> 1.291666667
A52: Timer | F52: =SUM(F49:F51) -> 9.480555556 | G52: =IF(F52<>"",ROUND(F52*24,2),"") -> 227.53
G53: =F45*G52 -> 28614.1728

Sheet oktober2010 (hidden)
R2: Aften tillæg | S2: Fra kl. | T2: 18:00:00 | U2: Til kl. | V2: 00:00:00
R3: Nat tillæg | S3: Fra kl. | T3: 00:00:00 | U3: Til kl. | V3: 06:00:00
R4: Lørdag | S4: Fra kl. | T4: 14:00:00 | U4: Til kl. | V4: 00:00:00
R5: Grundlovsdag | S5: Fra kl. | T5: 12:00:00 | U5: Til kl. | V5: 00:00:00
A7: Løn | B7: =PROPER(TEXT(A10,"dd mmmm åååå")) & PROPER(TEXT(A40," - dd mmmm åååå")) -> 05 December 2011 - 01 Januar 2012 | H7: Uge : | I7: =IF(A10="","",TRUNC((A10-WEEKDAY(A10,2)-DATE(YEAR(A10+4-WEEKDAY(A10,2)),1,-10))/7)) -> 49 | J7: - | L7: =IF(A34="","",TRUNC((A34-WEEKDAY(A34,2)-DATE(YEAR(A34+4-WEEKDAY(A34,2)),1,-10))/7)) -> 52 | S7: Time beregning:
A8: Lønart | S8: Betalt pause ved vagt over 5 timer | W8: 00:25:00 | X8: minutter | Y8: 00:00:00 | Z8: 06:00:00 | AA8: 17:00:00 | AB8: 14:00:00
A9: Dato | B9: Dag | D9: Start | E9: Slut | F9: Time SID | G9: Overtid 1-3 time | H9: Overtid 4 - time | I9: Aftenstillæg alle dage 17-23 | K9: Nattillæg 23-06 | M9: Lørdag tillæg 06 - 06 | N9: Søndag tillæg 06-06 | O9: Optjent afspadsering | P9: Afholdt afspadsering
A10: 2011-12-05 | B10: =PROPER(TEXT(A10,"ddd")) -> Ma | C10: =HelligdagsNavn(A10,0,0) ->  | D10: 00:01:00 | E10: 13:00:00 | F10: =IF(D10="","",(E10-D10)+(D10>E10)) -> 0.5409722222 | I10: =IF(D10="","",(IF(E10-MAX(D10,(17/24))+(E10<D10)<0,0,E10-MAX(D10,(17/24))+(E10<D10)))-(IF((E10-MAX(D10,(23/24))+(E10<D10))<0,0,(E10-MAX(D10,(23/24))+(E10<D10))))) -> 00:00:00 | K10: =IF(F10="","",IF((E10-MAX(D10,(23/24))+(D10>E10))<0,0,(IF(E10<D10,IF(E10>6/24,6/24,E10),E10)-MAX(D10,(23/24)))+(D10>E10))+(6/24)-MIN(D10,(6/24))) -> 05:59:00 | N10: =IF(D10="","",IF(D10<6/24,6/24-D10,"")) -> 05:59:00 | O10: =IF(F10="","",IF(F10<>0,IF(C10<>"",IF(M10+N10=0,Satser!B$23,((M10+N10)*24)*(24/1440)+Satser!B$23),IF(M10+N10=0,"",((M10+N10)*24)*(24/1440))),"")) -> 02:23:36 | S10: =IF(D10="","",HOUR(D10)) -> 0 | T10: =IF(D10="","",MINUTE(D10)) -> 1 | U10: =IF(D10="","",TIME(HOUR(D10),MINUTE(D10),0)) -> 00:01:00 | V10: =IF(E10="","",HOUR(E10)) -> 13 | W10: =IF(E10="","",MINUTE(E10)) -> 0 | X10: =IF(E10="","",TIME(HOUR(E10),MINUTE(E10),0)) -> 13:00:00
A11: =A10+1 -> 2011-12-06 | B11: =PROPER(TEXT(A11,"ddd")) -> Ti | C11: =HelligdagsNavn(A11,0,0) ->  | D11: 23:00:00 | E11: 05:00:00 | F11: 0.25 | I11: 00:00:00 | K11: =IF(F11="","",IF((E11-MAX(D11,(23/24))+(D11>E11))<0,0,(IF(E11<D11,IF(E11>6/24,6/24,E11),E11)-MAX(D11,(23/24)))+(D11>E11))+(6/24)-MIN(D11,(6/24))) -> 06:00:00 | O11: =IF(F11="","",IF(F11<>0,IF(C11<>"",IF(M11+N11=0,Satser!B$23,((M11+N11)*24)*(24/1440)+Satser!B$23),IF(M11+N11=0,"",((M11+N11)*24)*(24/1440))),"")) ->  | S11: 23 | T11: 0 | U11: 23:00:00 | V11: 5 | W11: 0 | X11: 05:00:00
A12: =A11+1 -> 2011-12-07 | B12: =PROPER(TEXT(A12,"ddd")) -> On | D12: 15:00:00 | E12: 07:00:00 | F12: 0.6666666667 | I12: 06:00:00 | K12: =IF(F12="","",IF((E12-MAX(D12,(23/24))+(D12>E12))<0,0,(IF(E12<D12,IF(E12>6/24,6/24,E12),E12)-MAX(D12,(23/24)))+(D12>E12))+(6/24)-MIN(D12,(6/24))) -> 07:00:00 | O12: =IF(F12="","",IF(F12<>0,IF(C12<>"",IF(M12+N12=0,Satser!B$23,((M12+N12)*24)*(24/1440)+Satser!B$23),IF(M12+N12=0,"",((M12+N12)*24)*(24/1440))),"")) ->  | S12: 15 | T12: 0 | U12: 15:00:00 | V12: 7 | W12: 0 | X12: 07:00:00
A13: 2011-12-08 | B13: To | O13: =IF(F13="","",IF(F13<>0,IF(C13<>"",IF(M13+N13=0,Satser!B$23,((M13+N13)*24)*(24/1440)+Satser!B$23),IF(M13+N13=0,"",((M13+N13)*24)*(24/1440))),"")) -> 
A14: 2011-12-09 | B14: Fr | D14: 22:00:00 | E14: 11:00:00 | F14: 0.5416666667 | I14: 01:00:00 | K14: 07:00:00 | M14: =IF(E14<D14,IF(E14>6/24,E14-6/24,""),"") -> 0.2083333333 | O14: =IF(F14="","",IF(F14<>0,IF(C14<>"",IF(M14+N14=0,Satser!B$23,((M14+N14)*24)*(24/1440)+Satser!B$23),IF(M14+N14=0,"",((M14+N14)*24)*(24/1440))),"")) -> 02:00:00 | S14: 22 | T14: 0 | U14: 22:00:00 | V14: 11 | W14: 0 | X14: 11:00:00
A15: 2011-12-10 | B15: Lø | D15: 22:00:00 | E15: 11:00:00 | F15: 0.5416666667 | I15: 01:00:00 | K15: 07:00:00 | M15: =IF(D15="","",IF((E15-MAX(D15,(6/24))+(D15>E15))<0,0,(IF(E15<D15,IF(E15>6/24,6/24,E15),E15)-MAX(D15,(6/24)))+(D15>E15))+(6/24)-MIN(E15,(6/24))) -> 0.3333333333 | N15: =IF(E15<D15,IF(E15>6/24,E15-6/24,""),"") -> 0.2083333333 | O15: =IF(F15="","",IF(F15<>0,IF(C15<>"",IF(M15+N15=0,Satser!B$23,((M15+N15)*24)*(24/1440)+Satser!B$23),IF(M15+N15=0,"",((M15+N15)*24)*(24/1440))),"")) -> 05:12:00 | S15: 22 | T15: 0 | U15: 22:00:00 | V15: 11 | W15: 0 | X15: 11:00:00
A16: 2011-12-11 | B16: Sø | D16: 23:59:00 | E16: 13:00:00 | F16: 0.5423611111 | I16: 00:00:00 | K16: 06:01:00 | M16: =IF(D16="","",IF(D16<6/24,IF(E16<6/24,6/24-D16-(6/24-E16),6/24-D16),"00:00")) -> 00:00 | N16: =IF(D16="","",IF((E16-MAX(D16,(6/24))+(D16>E16))<0,0,(IF(E16<D16,IF(E16>6/24,6/24,E16),E16)-MAX(D16,(6/24)))+(D16>E16))+(6/24)-MIN(E16,(6/24))) -> 0.2506944444 | O16: =IF(F16="","",IF(F16<>0,IF(C16<>"",IF(M16+N16=0,Satser!B$23,((M16+N16)*24)*(24/1440)+Satser!B$23),IF(M16+N16=0,"",((M16+N16)*24)*(24/1440))),"")) -> 02:24:24 | S16: 23 | T16: 59 | U16: 23:59:00 | V16: 13 | W16: 0 | X16: 13:00:00
O17: =IF(F17="","",IF(F17<>0,IF(C17<>"",IF(M17+N17=0,Satser!B$23,((M17+N17)*24)*(24/1440)+Satser!B$23),IF(M17+N17=0,"",((M17+N17)*24)*(24/1440))),"")) -> 
A18: =A16+1 -> 2011-12-12 | B18: =PROPER(TEXT(A18,"ddd")) -> Ma | C18: =HelligdagsNavn(A18,0,0) ->  | F18: =IF(D18="","",(E18-D18)+(D18>E18)) ->  | I18: =IF(D18="","",(IF(E18-MAX(D18,(17/24))+(E18<D18)<0,0,E18-MAX(D18,(17/24))+(E18<D18)))-(IF((E18-MAX(D18,(23/24))+(E18<D18))<0,0,(E18-MAX(D18,(23/24))+(E18<D18))))) ->  | N18: =IF(D18="","",IF(D18<6/24,6/24-D18,"")) ->  | O18: =IF(F18="","",IF(F18<>0,IF(C18<>"",IF(M18+N18=0,Satser!B$23,((M18+N18)*24)*(24/1440)+Satser!B$23),IF(M18+N18=0,"",((M18+N18)*24)*(24/1440))),"")) -> 
A19: =A18+1 -> 2011-12-13 | B19: =PROPER(TEXT(A19,"ddd")) -> Ti | C19: =HelligdagsNavn(A19,0,0) ->  | F19: =IF(D19="","",(E19-D19)+(D19>E19)) ->  | O19: =IF(F19="","",IF(F19<>0,IF(C19<>"",IF(M19+N19=0,Satser!B$23,((M19+N19)*24)*(24/1440)+Satser!B$23),IF(M19+N19=0,"",((M19+N19)*24)*(24/1440))),"")) -> 
A20: =A19+1 -> 2011-12-14 | B20: =PROPER(TEXT(A20,"ddd")) -> On | O20: =IF(F20="","",IF(F20<>0,IF(C20<>"",IF(M20+N20=0,Satser!B$23,((M20+N20)*24)*(24/1440)+Satser!B$23),IF(M20+N20=0,"",((M20+N20)*24)*(24/1440))),"")) -> 
A21: 2011-12-15 | B21: To | O21: =IF(F21="","",IF(F21<>0,IF(C21<>"",IF(M21+N21=0,Satser!B$23,((M21+N21)*24)*(24/1440)+Satser!B$23),IF(M21+N21=0,"",((M21+N21)*24)*(24/1440))),"")) -> 
A22: 2011-12-16 | B22: Fr | M22: =IF(D22="","",IF(E22<D22,IF(E22>6/24,E22-6/24,""),"")) ->  | O22: =IF(F22="","",IF(F22<>0,IF(C22<>"",IF(M22+N22=0,Satser!B$23,((M22+N22)*24)*(24/1440)+Satser!B$23),IF(M22+N22=0,"",((M22+N22)*24)*(24/1440))),"")) -> 
A23: 2011-12-17 | B23: Lø | M23: =IF(D23="","",IF((E23-MAX(D23,(6/24))+(D23>E23))<0,0,(IF(E23<D23,IF(E23>6/24,6/24,E23),E23)-MAX(D23,(6/24)))+(D23>E23))+(6/24)-MIN(E23,(6/24))) ->  | N23: =IF(E23<D23,IF(E23>6/24,E23-6/24,""),"") ->  | O23: =IF(F23="","",IF(F23<>0,IF(C23<>"",IF(M23+N23=0,Satser!B$23,((M23+N23)*24)*(24/1440)+Satser!B$23),IF(M23+N23=0,"",((M23+N23)*24)*(24/1440))),"")) -> 
A24: 2011-12-18 | B24: Sø | M24: =IF(D24="","",IF(D24<6/24,IF(E24<6/24,6/24-D24-(6/24-E24),6/24-D24),"00:00")) ->  | N24: =IF(D24="","",IF((E24-MAX(D24,(6/24))+(D24>E24))<0,0,(IF(E24<D24,IF(E24>6/24,6/24,E24),E24)-MAX(D24,(6/24)))+(D24>E24))+(6/24)-MIN(E24,(6/24))) ->  | O24: =IF(F24="","",IF(F24<>0,IF(C24<>"",IF(M24+N24=0,Satser!B$23,((M24+N24)*24)*(24/1440)+Satser!B$23),IF(M24+N24=0,"",((M24+N24)*24)*(24/1440))),"")) -> 
O25: =IF(F25="","",IF(F25<>0,IF(C25<>"",IF(M25+N25=0,Satser!B$23,((M25+N25)*24)*(24/1440)+Satser!B$23),IF(M25+N25=0,"",((M25+N25)*24)*(24/1440))),"")) -> 
A26: =A24+1 -> 2011-12-19 | B26: =PROPER(TEXT(A26,"ddd")) -> Ma | C26: =HelligdagsNavn(A26,0,0) ->  | I26: =IF(D26="","",(IF(E26-MAX(D26,(17/24))+(E26<D26)<0,0,E26-MAX(D26,(17/24))+(E26<D26)))-(IF((E26-MAX(D26,(23/24))+(E26<D26))<0,0,(E26-MAX(D26,(23/24))+(E26<D26))))) ->  | K26: =IF(F26="","",IF((E26-MAX(D26,(23/24))+(D26>E26))<0,0,(IF(E26<D26,IF(E26>6/24,6/24,E26),E26)-MAX(D26,(23/24)))+(D26>E26))+(6/24)-MIN(D26,(6/24))) ->  | N26: =IF(D26="","",IF(D26<6/24,6/24-D26,"")) ->  | O26: =IF(F26="","",IF(F26<>0,IF(C26<>"",IF(M26+N26=0,Satser!B$23,((M26+N26)*24)*(24/1440)+Satser!B$23),IF(M26+N26=0,"",((M26+N26)*24)*(24/1440))),"")) -> 
A27: =A26+1 -> 2011-12-20 | B27: =PROPER(TEXT(A27,"ddd")) -> Ti | C27: =HelligdagsNavn(A27,0,0) ->  | O27: =IF(F27="","",IF(F27<>0,IF(C27<>"",IF(M27+N27=0,Satser!B$23,((M27+N27)*24)*(24/1440)+Satser!B$23),IF(M27+N27=0,"",((M27+N27)*24)*(24/1440))),"")) -> 
A28: =A27+1 -> 2011-12-21 | B28: =PROPER(TEXT(A28,"ddd")) -> On | O28: =IF(F28="","",IF(F28<>0,IF(C28<>"",IF(M28+N28=0,Satser!B$23,((M28+N28)*24)*(24/1440)+Satser!B$23),IF(M28+N28=0,"",((M28+N28)*24)*(24/1440))),"")) -> 
A29: 2011-12-22 | B29: To | O29: =IF(F29="","",IF(F29<>0,IF(C29<>"",IF(M29+N29=0,Satser!B$23,((M29+N29)*24)*(24/1440)+Satser!B$23),IF(M29+N29=0,"",((M29+N29)*24)*(24/1440))),"")) -> 
A30: 2011-12-23 | B30: Fr | D30: 22:00:00 | E30: 11:00:00 | F30: 0.5416666667 | I30: 01:00:00 | K30: 07:00:00 | M30: =IF(E30<D30,IF(E30>6/24,E30-6/24,""),"") -> 0.2083333333 | O30: =IF(F30="","",IF(F30<>0,IF(C30<>"",IF(M30+N30=0,Satser!B$23,((M30+N30)*24)*(24/1440)+Satser!B$23),IF(M30+N30=0,"",((M30+N30)*24)*(24/1440))),"")) -> 02:00:00 | S30: 22 | T30: 0 | U30: 22:00:00 | V30: 11 | W30: 0 | X30: 11:00:00
A31: 2011-12-24 | B31: Lø | C31: Julaftensdag | D31: 22:00:00 | E31: 11:00:00 | F31: 0.5416666667 | I31: 01:00:00 | K31: 07:00:00 | M31: =IF(D31="","",IF((E31-MAX(D31,(6/24))+(D31>E31))<0,0,(IF(E31<D31,IF(E31>6/24,6/24,E31),E31)-MAX(D31,(6/24)))+(D31>E31))+(6/24)-MIN(E31,(6/24))) -> 0.3333333333 | N31: =IF(E31<D31,IF(E31>6/24,E31-6/24,""),"") -> 0.2083333333 | O31: =IF(F31="","",IF(F31<>0,IF(C31<>"",IF(M31+N31=0,Satser!B$23,((M31+N31)*24)*(24/1440)+Satser!B$23),IF(M31+N31=0,"",((M31+N31)*24)*(24/1440))),"")) -> 12:57:00 | S31: 22 | T31: 0 | U31: 22:00:00 | V31: 11 | W31: 0 | X31: 11:00:00
A32: 2011-12-25 | B32: Sø | C32: 1. Juledag | D32: 23:59:00 | E32: 13:00:00 | F32: 0.5423611111 | I32: 00:00:00 | K32: 06:01:00 | M32: =IF(D32="","",IF(D32<6/24,IF(E32<6/24,6/24-D32-(6/24-E32),6/24-D32),"00:00")) -> 00:00 | N32: =IF(D32="","",IF((E32-MAX(D32,(6/24))+(D32>E32))<0,0,(IF(E32<D32,IF(E32>6/24,6/24,E32),E32)-MAX(D32,(6/24)))+(D32>E32))+(6/24)-MIN(E32,(6/24))) -> 0.2506944444 | O32: =IF(F32="","",IF(F32<>0,IF(C32<>"",IF(M32+N32=0,Satser!B$23,((M32+N32)*24)*(24/1440)+Satser!B$23),IF(M32+N32=0,"",((M32+N32)*24)*(24/1440))),"")) -> 10:09:24 | S32: 23 | T32: 59 | U32: 23:59:00 | V32: 13 | W32: 0 | X32: 13:00:00
O33: =IF(F33="","",IF(F33<>0,IF(C33<>"",IF(M33+N33=0,Satser!B$23,((M33+N33)*24)*(24/1440)+Satser!B$23),IF(M33+N33=0,"",((M33+N33)*24)*(24/1440))),"")) -> 
A34: =A32+1 -> 2011-12-26 | B34: =PROPER(TEXT(A34,"ddd")) -> Ma | C34: =HelligdagsNavn(A34,0,0) -> 2. Juledag | D34: 00:01:00 | E34: 13:00:00 | F34: 0.5409722222 | I34: =IF(D34="","",(IF(E34-MAX(D34,(17/24))+(E34<D34)<0,0,E34-MAX(D34,(17/24))+(E34<D34)))-(IF((E34-MAX(D34,(23/24))+(E34<D34))<0,0,(E34-MAX(D34,(23/24))+(E34<D34))))) -> 00:00:00 | K34: =IF(F34="","",IF((E34-MAX(D34,(23/24))+(D34>E34))<0,0,(IF(E34<D34,IF(E34>6/24,6/24,E34),E34)-MAX(D34,(23/24)))+(D34>E34))+(6/24)-MIN(D34,(6/24))) -> 05:59:00 | N34: =IF(D34="","",IF(D34<6/24,6/24-D34,"")) -> 05:59:00 | O34: =IF(F34="","",IF(F34<>0,IF(C34<>"",IF(M34+N34=0,Satser!B$23,((M34+N34)*24)*(24/1440)+Satser!B$23),IF(M34+N34=0,"",((M34+N34)*24)*(24/1440))),"")) -> 10:08:36 | S34: 0 | T34: 1 | U34: 00:01:00 | V34: 13 | W34: 0 | X34: 13:00:00
A35: =A34+1 -> 2011-12-27 | B35: =PROPER(TEXT(A35,"ddd")) -> Ti | C35: =HelligdagsNavn(A35,0,0) ->  | D35: 23:00:00 | E35: 05:00:00 | F35: 0.25 | I35: 00:00:00 | K35: 06:00:00 | O35: =IF(F35="","",IF(F35<>0,IF(C35<>"",IF(M35+N35=0,Satser!B$23,((M35+N35)*24)*(24/1440)+Satser!B$23),IF(M35+N35=0,"",((M35+N35)*24)*(24/1440))),"")) ->  | S35: 23 | T35: 0 | U35: 23:00:00 | V35: 5 | W35: 0 | X35: 05:00:00
A36: =A35+1 -> 2011-12-28 | B36: =PROPER(TEXT(A36,"ddd")) -> On | D36: 15:00:00 | E36: 07:00:00 | F36: 0.6666666667 | I36: 06:00:00 | K36: 07:00:00 | O36: =IF(F36="","",IF(F36<>0,IF(C36<>"",IF(M36+N36=0,Satser!B$23,((M36+N36)*24)*(24/1440)+Satser!B$23),IF(M36+N36=0,"",((M36+N36)*24)*(24/1440))),"")) ->  | S36: 15 | T36: 0 | U36: 15:00:00 | V36: 7 | W36: 0 | X36: 07:00:00
A37: 2011-12-29 | B37: To | O37: =IF(F37="","",IF(F37<>0,IF(C37<>"",IF(M37+N37=0,Satser!B$23,((M37+N37)*24)*(24/1440)+Satser!B$23),IF(M37+N37=0,"",((M37+N37)*24)*(24/1440))),"")) -> 
A38: 2011-12-30 | B38: Fr | D38: 22:00:00 | E38: 11:00:00 | F38: 0.5416666667 | I38: 01:00:00 | K38: 07:00:00 | M38: =IF(E38<D38,IF(E38>6/24,E38-6/24,""),"") -> 0.2083333333 | O38: =IF(F38="","",IF(F38<>0,IF(C38<>"",IF(M38+N38=0,Satser!B$23,((M38+N38)*24)*(24/1440)+Satser!B$23),IF(M38+N38=0,"",((M38+N38)*24)*(24/1440))),"")) -> 02:00:00 | S38: 22 | T38: 0 | U38: 22:00:00 | V38: 11 | W38: 0 | X38: 11:00:00
A39: 2011-12-31 | B39: Lø | C39: Nytårsaftensdag | D39: 22:00:00 | E39: 11:00:00 | F39: 0.5416666667 | I39: 01:00:00 | K39: 07:00:00 | M39: =IF(D39="","",IF((E39-MAX(D39,(6/24))+(D39>E39))<0,0,(IF(E39<D39,IF(E39>6/24,6/24,E39),E39)-MAX(D39,(6/24)))+(D39>E39))+(6/24)-MIN(E39,(6/24))) -> 0.3333333333 | N39: =IF(E39<D39,IF(E39>6/24,E39-6/24,""),"") -> 0.2083333333 | O39: =IF(F39="","",IF(F39<>0,IF(C39<>"",IF(M39+N39=0,Satser!B$23,((M39+N39)*24)*(24/1440)+Satser!B$23),IF(M39+N39=0,"",((M39+N39)*24)*(24/1440))),"")) -> 12:57:00 | S39: 22 | T39: 0 | U39: 22:00:00 | V39: 11 | W39: 0 | X39: 11:00:00
A40: 2012-01-01 | B40: Sø | C40: Nytårsdag | D40: 23:59:00 | E40: 13:00:00 | F40: 0.5423611111 | I40: 00:00:00 | K40: 06:01:00 | M40: =IF(D40="","",IF(D40<6/24,IF(E40<6/24,6/24-D40-(6/24-E40),6/24-D40),"00:00")) -> 00:00 | N40: =IF(D40="","",IF((E40-MAX(D40,(6/24))+(D40>E40))<0,0,(IF(E40<D40,IF(E40>6/24,6/24,E40),E40)-MAX(D40,(6/24)))+(D40>E40))+(6/24)-MIN(E40,(6/24))) -> 0.2506944444 | O40: =IF(F40="","",IF(F40<>0,IF(C40<>"",IF(M40+N40=0,Satser!B$23,((M40+N40)*24)*(24/1440)+Satser!B$23),IF(M40+N40=0,"",((M40+N40)*24)*(24/1440))),"")) -> 10:09:24 | S40: 23 | T40: 59 | U40: 23:59:00 | V40: 13 | W40: 0 | X40: 13:00:00
A41: Total timer | F41: =IF(SUM(F15:F40)<>"0",SUM(F10:F40),"") -> 7.792361111 | G41: =IF(SUM(G10:G40)<>"0",SUM(G10:G40),"") -> 0 | H41: 0 | I41: =IF(SUM(I10:I40)<>"0",SUM(I10:I40),"") -> 0.75 | K41: =IF(SUM(K10:K40)<>"0",SUM(K10:K40),"") -> 4.084027778 | M41: 1.625 | N41: 1.875694444 | O41: =SUM(O10:O40) -> 3.014861111 | P41: =SUM(P10:P40) -> 0
A42: Timer 1/100 | F42: =IF(F41<>"",ROUND(F41*24,2),"") -> 187.02 | G42: =IF(G41<>"",ROUND(G41*24,2),"") -> 0 | H42: 0 | I42: =IF(I41<>"",ROUND(I41*24,2),"") -> 18 | K42: =IF(K41<>"",ROUND(K41*24,2),"") -> 98.02 | M42: 39 | N42: 45.02 | O42: 72.36 | P42: 0
A43: Satser | F43: =Satser!B7 -> 125.76 | G43: =Satser!B9 -> 59.81 | H43: =Satser!B12 -> 119.62 | I43: 18.8 | K43: 21.81 | M43: 28.68 | N43: 67
F44: =IF(F41<>"",F42*F43,"") -> 23519.6352 | G44: =IF(G41<>"",G42*G43,"") -> 0 | H44: 0 | I44: =IF(I41<>"",I42*I43,"") -> 338.4 | K44: =IF(K41<>"",K42*K43,"") -> 2137.8162 | M44: 1118.52 | N44: =IF(N41<>"",N41*N43,"") -> 125.6715278
A46: Lønart
A47: 3025 | F47: =F41 -> 7.792361111
A48: 3425 | F48: =G41 -> 0
A49: 3428 | F49: =H41 -> 0
A50: Timer | F50: =SUM(F47:F49) -> 7.792361111 | G50: =IF(F50<>"",ROUND(F50*24,2),"") -> 187.02
G51: =F43*G50 -> 23519.6352

Sheet Tomt
Q2: Aften tillæg | R2: Fra kl. | S2: 18:00:00 | T2: Til kl. | U2: 00:00:00
Q3: Nat tillæg | R3: Fra kl. | S3: 00:00:00 | T3: Til kl. | U3: 06:00:00
Q4: Lørdag | R4: Fra kl. | S4: 14:00:00 | T4: Til kl. | U4: 00:00:00
Q5: Grundlovsdag | R5: Fra kl. | S5: 12:00:00 | T5: Til kl. | U5: 00:00:00
A7: Løn | B7: 1 juni 2010 - 30 juni 2010 | Q7: Time beregning:
A8: Lønart | G8: 3025 | H8: 3425 | I8: 3426 | J8: 3600 | K8: 3602 | L8: 3605 | M8: 3610 | N8: 9091 | O8: 9092 | Q8: Betalt pause ved vagt over 5 timer | U8: 00:25:00 | V8: minutter | W8: 00:00:00 | X8: 06:00:00 | Y8: 18:00:00 | Z8: 14:00:00
A9: Dato | B9: Dag | D9: Vagt | E9: Start | F9: Slut | G9: Time SID | H9: Overtid 1-3 time | I9: Overtid 4 - time | J9: Forskudttid alle dage | K9: Nattillæg 00-06 | L9: Weekend tillæg | M9: Delt tjenste
A10: 2013-04-01 | B10: =PROPER(TEXT(A10,"ddd")) -> Ma | C10: =HelligdagsNavn(A10,0,0) -> 2. Påskedag | D10: 701 | E10: =IF($D10="","",IF(VLOOKUP($D10,Timeberegning!A$4:B$153,2)=0,"",VLOOKUP($D10,Timeberegning!A$4:B$153,2))) -> 04:36:00 | F10: =IF($D10="","",IF(VLOOKUP($D10,Timeberegning!A$4:C$153,3)="","",VLOOKUP($D10,Timeberegning!A$4:C$153,3))) -> 12:24:00 | G10: =IF($D10="","",VLOOKUP($D10,Timeberegning!$A$4:$O$10,13)) -> 06:56:00 | J10: =IF(E10<>"",IF(WEEKDAY(A10,2)<>6,IF(E10>F10,(F10-MAX(E10,(18/24))+(E10>F10))-F10,IF(F10>Y$8,(F10-MAX(E10,(18/24))),"")),IF(E10>F10,(F10-MAX(E10,(14/24))+(E10>F10))-F10,IF(F10>Z$8,(F10-MAX(E10,(14/24))),""))),"") ->  | K10: =IF(G10<>"",IF(S10<X$8,(X$8-S10),IF(V10<X$8,(V10-W$8),"")),"") -> 01:24:00 | L10: =IF(G10<>0,IF(WEEKDAY(A10,2)=7,G10,""),"") ->  | M10: =IF($D10="","",IF(VLOOKUP($D10,Timeberegning!$A$4:$O$101,15)="","",VLOOKUP($D10,Timeberegning!$A$4:$O$101,15))) ->  | N10: =IF(SUM(H10:I10)=0,"",SUM(H10:I10)) ->  | Q10: =IF(E10="","",HOUR(E10)) -> 4 | R10: =IF(E10="","",MINUTE(E10)) -> 36 | S10: =IF(E10="","",TIME(HOUR(E10),MINUTE(E10),0)) -> 04:36:00 | T10: =IF(F10="","",HOUR(F10)) -> 12 | U10: =IF(F10="","",MINUTE(F10)) -> 24 | V10: =TIME(HOUR(F10),MINUTE(F10),0) -> 12:24:00
A11: 2013-04-02 | B11: =PROPER(TEXT(A11,"ddd")) -> Ti | C11: =HelligdagsNavn(A11,0,0) ->  | D11: 111 | E11: =IF($D11="","",IF(VLOOKUP($D11,Timeberegning!A$4:B$153,2)=0,"",VLOOKUP($D11,Timeberegning!A$4:B$153,2))) -> 05:54:00 | F11: =IF($D11="","",IF(VLOOKUP($D11,Timeberegning!A$4:C$153,3)="","",VLOOKUP($D11,Timeberegning!A$4:C$153,3))) -> 14:57:00 | G11: =IF($D11="","",VLOOKUP($D11,Timeberegning!$A$4:$O$10,13)) -> 08:54:00 | J11: =IF(E11<>"",IF(WEEKDAY(A11,2)<>6,IF(E11>F11,(F11-MAX(E11,(18/24))+(E11>F11))-F11,IF(F11>Y$8,(F11-MAX(E11,(18/24))),"")),IF(E11>F11,(F11-MAX(E11,(14/24))+(E11>F11))-F11,IF(F11>Z$8,(F11-MAX(E11,(14/24))),""))),"") ->  | K11: 00:06:00 | L11: =IF(G11<>0,IF(WEEKDAY(A11,2)=7,G11,""),"") ->  | M11: =IF($D11="","",IF(VLOOKUP($D11,Timeberegning!$A$4:$O$101,15)="","",VLOOKUP($D11,Timeberegning!$A$4:$O$101,15))) ->  | N11: =IF(SUM(H11:I11)=0,"",SUM(H11:I11)) ->  | Q11: 5 | R11: 54 | S11: 05:54:00 | T11: 14 | U11: 57 | V11: =TIME(HOUR(F11),MINUTE(F11),0) -> 14:57:00
A12: 2013-04-03 | B12: =PROPER(TEXT(A12,"ddd")) -> On | D12: 112 | E12: =IF($D12="","",IF(VLOOKUP($D12,Timeberegning!A$4:B$153,2)=0,"",VLOOKUP($D12,Timeberegning!A$4:B$153,2))) -> 10:06:00 | F12: =IF($D12="","",IF(VLOOKUP($D12,Timeberegning!A$4:C$153,3)="","",VLOOKUP($D12,Timeberegning!A$4:C$153,3))) -> 16:38:00 | G12: =IF($D12="","",VLOOKUP($D12,Timeberegning!$A$4:$O$10,13)) -> 06:11:00 | J12: =IF(E12<>"",IF(WEEKDAY(A12,2)<>6,IF(E12>F12,(F12-MAX(E12,(18/24))+(E12>F12))-F12,IF(F12>Y$8,(F12-MAX(E12,(18/24))),"")),IF(E12>F12,(F12-MAX(E12,(14/24))+(E12>F12))-F12,IF(F12>Z$8,(F12-MAX(E12,(14/24))),""))),"") ->  | M12: =IF($D12="","",IF(VLOOKUP($D12,Timeberegning!$A$4:$O$101,15)="","",VLOOKUP($D12,Timeberegning!$A$4:$O$101,15))) ->  | Q12: 10 | R12: 6 | S12: 10:06:00 | T12: 16 | U12: 38 | V12: =TIME(HOUR(F12),MINUTE(F12),0) -> 16:38:00
A13: 2013-04-04 | B13: To | E13: =IF($D13="","",IF(VLOOKUP($D13,Timeberegning!A$4:B$153,2)=0,"",VLOOKUP($D13,Timeberegning!A$4:B$153,2))) ->  | F13: =IF($D13="","",IF(VLOOKUP($D13,Timeberegning!A$4:C$153,3)="","",VLOOKUP($D13,Timeberegning!A$4:C$153,3))) ->  | G13: =IF($D13="","",VLOOKUP($D13,Timeberegning!$A$4:$O$153,13)) ->  | M13: =IF($D13="","",IF(VLOOKUP($D13,Timeberegning!$A$4:$O$101,15)="","",VLOOKUP($D13,Timeberegning!$A$4:$O$101,15))) ->  | O13: =IF($D13="","",IF(VLOOKUP($D13,Timeberegning!$A$4:$P$101,16)="","",VLOOKUP($D13,Timeberegning!$A$4:$P$101,16))) ->  | V13: =TIME(HOUR(F13),MINUTE(F13),0) -> 
A14: 2013-04-05 | B14: Fr | E14: =IF($D14="","",IF(VLOOKUP($D14,Timeberegning!A$4:B$153,2)=0,"",VLOOKUP($D14,Timeberegning!A$4:B$153,2))) ->  | F14: =IF($D14="","",IF(VLOOKUP($D14,Timeberegning!A$4:C$153,3)="","",VLOOKUP($D14,Timeberegning!A$4:C$153,3))) ->  | G14: =IF($D14="","",VLOOKUP($D14,Timeberegning!$A$4:$O$153,13)) ->  | M14: =IF($D14="","",IF(VLOOKUP($D14,Timeberegning!$A$4:$O$101,15)="","",VLOOKUP($D14,Timeberegning!$A$4:$O$101,15))) ->  | O14: =IF($D14="","",IF(VLOOKUP($D14,Timeberegning!$A$4:$P$101,16)="","",VLOOKUP($D14,Timeberegning!$A$4:$P$101,16))) ->  | V14: =TIME(HOUR(F14),MINUTE(F14),0) -> 
A15: 2013-04-06 | B15: Lø | E15: =IF($D15="","",IF(VLOOKUP($D15,Timeberegning!A$4:B$153,2)=0,"",VLOOKUP($D15,Timeberegning!A$4:B$153,2))) ->  | F15: =IF($D15="","",IF(VLOOKUP($D15,Timeberegning!A$4:C$153,3)="","",VLOOKUP($D15,Timeberegning!A$4:C$153,3))) ->  | G15: =IF($D15="","",VLOOKUP($D15,Timeberegning!$A$4:$O$153,13)) ->  | L15: =IF(G15<>0,IF(WEEKDAY(A15,2)=7,G15,""),"") ->  | M15: =IF($D15="","",IF(VLOOKUP($D15,Timeberegning!$A$4:$O$101,15)="","",VLOOKUP($D15,Timeberegning!$A$4:$O$101,15))) ->  | O15: =IF($D15="","",IF(VLOOKUP($D15,Timeberegning!$A$4:$P$101,16)="","",VLOOKUP($D15,Timeberegning!$A$4:$P$101,16))) ->  | V15: =IF(F15="","",TIME(HOUR(F15),MINUTE(F15),0)) -> 
A16: 2013-04-07 | B16: Sø | E16: =IF($D16="","",IF(VLOOKUP($D16,Timeberegning!A$4:B$153,2)=0,"",VLOOKUP($D16,Timeberegning!A$4:B$153,2))) ->  | F16: =IF($D16="","",IF(VLOOKUP($D16,Timeberegning!A$4:C$153,3)="","",VLOOKUP($D16,Timeberegning!A$4:C$153,3))) ->  | G16: =IF($D16="","",IF(VLOOKUP($D16,Timeberegning!$A$4:$O$153,13)="","",VLOOKUP($D16,Timeberegning!$A$4:$O$153,13))) ->  | L16: =IF(G16<>0,IF(WEEKDAY(A16,2)=7,G16,""),"") ->  | M16: =IF($D16="","",IF(VLOOKUP($D16,Timeberegning!$A$4:$O$101,15)="","",VLOOKUP($D16,Timeberegning!$A$4:$O$101,15))) ->  | O16: =IF($D16="","",IF(VLOOKUP($D16,Timeberegning!$A$4:$P$101,16)="","",VLOOKUP($D16,Timeberegning!$A$4:$P$101,16))) -> 
A17: 2013-04-08 | B17: Ma | E17: =IF($D17="","",IF(VLOOKUP($D17,Timeberegning!A$4:B$153,2)=0,"",VLOOKUP($D17,Timeberegning!A$4:B$153,2))) ->  | F17: =IF($D17="","",IF(VLOOKUP($D17,Timeberegning!A$4:C$153,3)="","",VLOOKUP($D17,Timeberegning!A$4:C$153,3))) ->  | G17: =IF($D17="","",IF(VLOOKUP($D17,Timeberegning!$A$4:$O$153,13)="","",VLOOKUP($D17,Timeberegning!$A$4:$O$153,13))) ->  | L17: =IF(G17<>0,IF(WEEKDAY(A17,2)=7,G17,""),"") ->  | M17: =IF($D17="","",IF(VLOOKUP($D17,Timeberegning!$A$4:$O$101,15)="","",VLOOKUP($D17,Timeberegning!$A$4:$O$101,15))) ->  | O17: =IF($D17="","",IF(VLOOKUP($D17,Timeberegning!$A$4:$P$101,16)="","",VLOOKUP($D17,Timeberegning!$A$4:$P$101,16))) -> 
A18: 2013-04-09 | B18: Ti | E18: =IF($D18="","",IF(VLOOKUP($D18,Timeberegning!A$4:B$153,2)=0,"",VLOOKUP($D18,Timeberegning!A$4:B$153,2))) ->  | F18: =IF($D18="","",IF(VLOOKUP($D18,Timeberegning!A$4:C$153,3)="","",VLOOKUP($D18,Timeberegning!A$4:C$153,3))) ->  | G18: =IF($D18="","",IF(VLOOKUP($D18,Timeberegning!$A$4:$O$153,13)="","",VLOOKUP($D18,Timeberegning!$A$4:$O$153,13))) ->  | M18: =IF($D18="","",IF(VLOOKUP($D18,Timeberegning!$A$4:$O$101,15)="","",VLOOKUP($D18,Timeberegning!$A$4:$O$101,15))) ->  | O18: =IF($D18="","",IF(VLOOKUP($D18,Timeberegning!$A$4:$P$101,16)="","",VLOOKUP($D18,Timeberegning!$A$4:$P$101,16))) -> 
A19: 2013-04-10 | B19: On | E19: =IF($D19="","",IF(VLOOKUP($D19,Timeberegning!A$4:B$153,2)=0,"",VLOOKUP($D19,Timeberegning!A$4:B$153,2))) ->  | F19: =IF($D19="","",IF(VLOOKUP($D19,Timeberegning!A$4:C$153,3)="","",VLOOKUP($D19,Timeberegning!A$4:C$153,3))) ->  | G19: =IF($D19="","",IF(VLOOKUP($D19,Timeberegning!$A$4:$O$153,13)="","",VLOOKUP($D19,Timeberegning!$A$4:$O$153,13))) ->  | M19: =IF($D19="","",IF(VLOOKUP($D19,Timeberegning!$A$4:$O$101,15)="","",VLOOKUP($D19,Timeberegning!$A$4:$O$101,15))) ->  | O19: =IF($D19="","",IF(VLOOKUP($D19,Timeberegning!$A$4:$P$101,16)="","",VLOOKUP($D19,Timeberegning!$A$4:$P$101,16))) -> 
A20: 2013-04-11 | B20: To | E20: =IF($D20="","",IF(VLOOKUP($D20,Timeberegning!A$4:B$153,2)=0,"",VLOOKUP($D20,Timeberegning!A$4:B$153,2))) ->  | F20: =IF($D20="","",IF(VLOOKUP($D20,Timeberegning!A$4:C$153,3)="","",VLOOKUP($D20,Timeberegning!A$4:C$153,3))) ->  | G20: =IF($D20="","",IF(VLOOKUP($D20,Timeberegning!$A$4:$O$153,13)="","",VLOOKUP($D20,Timeberegning!$A$4:$O$153,13))) ->  | M20: =IF($D20="","",IF(VLOOKUP($D20,Timeberegning!$A$4:$O$101,15)="","",VLOOKUP($D20,Timeberegning!$A$4:$O$101,15))) ->  | O20: =IF($D20="","",IF(VLOOKUP($D20,Timeberegning!$A$4:$P$101,16)="","",VLOOKUP($D20,Timeberegning!$A$4:$P$101,16))) -> 
A21: 2013-04-12 | B21: Fr | E21: =IF($D21="","",IF(VLOOKUP($D21,Timeberegning!A$4:B$153,2)=0,"",VLOOKUP($D21,Timeberegning!A$4:B$153,2))) ->  | F21: =IF($D21="","",IF(VLOOKUP($D21,Timeberegning!A$4:C$153,3)="","",VLOOKUP($D21,Timeberegning!A$4:C$153,3))) ->  | G21: =IF($D21="","",IF(VLOOKUP($D21,Timeberegning!$A$4:$O$153,13)="","",VLOOKUP($D21,Timeberegning!$A$4:$O$153,13))) ->  | M21: =IF($D21="","",IF(VLOOKUP($D21,Timeberegning!$A$4:$O$101,15)="","",VLOOKUP($D21,Timeberegning!$A$4:$O$101,15))) ->  | O21: =IF($D21="","",IF(VLOOKUP($D21,Timeberegning!$A$4:$P$101,16)="","",VLOOKUP($D21,Timeberegning!$A$4:$P$101,16))) -> 
A22: 2013-04-13 | B22: Lø | E22: =IF($D22="","",IF(VLOOKUP($D22,Timeberegning!A$4:B$153,2)=0,"",VLOOKUP($D22,Timeberegning!A$4:B$153,2))) ->  | F22: =IF($D22="","",IF(VLOOKUP($D22,Timeberegning!A$4:C$153,3)="","",VLOOKUP($D22,Timeberegning!A$4:C$153,3))) ->  | G22: =IF($D22="","",IF(VLOOKUP($D22,Timeberegning!$A$4:$O$153,13)="","",VLOOKUP($D22,Timeberegning!$A$4:$O$153,13))) ->  | M22: =IF($D22="","",IF(VLOOKUP($D22,Timeberegning!$A$4:$O$101,15)="","",VLOOKUP($D22,Timeberegning!$A$4:$O$101,15))) ->  | O22: =IF($D22="","",IF(VLOOKUP($D22,Timeberegning!$A$4:$P$101,16)="","",VLOOKUP($D22,Timeberegning!$A$4:$P$101,16))) -> 
A23: 2013-04-14 | B23: Sø | E23: =IF($D23="","",IF(VLOOKUP($D23,Timeberegning!A$4:B$153,2)=0,"",VLOOKUP($D23,Timeberegning!A$4:B$153,2))) ->  | F23: =IF($D23="","",IF(VLOOKUP($D23,Timeberegning!A$4:C$153,3)="","",VLOOKUP($D23,Timeberegning!A$4:C$153,3))) ->  | G23: =IF($D23="","",IF(VLOOKUP($D23,Timeberegning!$A$4:$O$153,13)="","",VLOOKUP($D23,Timeberegning!$A$4:$O$153,13))) ->  | M23: =IF($D23="","",IF(VLOOKUP($D23,Timeberegning!$A$4:$O$101,15)="","",VLOOKUP($D23,Timeberegning!$A$4:$O$101,15))) ->  | O23: =IF($D23="","",IF(VLOOKUP($D23,Timeberegning!$A$4:$P$101,16)="","",VLOOKUP($D23,Timeberegning!$A$4:$P$101,16))) -> 
A24: 2013-04-15 | B24: Ma | E24: =IF($D24="","",IF(VLOOKUP($D24,Timeberegning!A$4:B$153,2)=0,"",VLOOKUP($D24,Timeberegning!A$4:B$153,2))) ->  | F24: =IF($D24="","",IF(VLOOKUP($D24,Timeberegning!A$4:C$153,3)="","",VLOOKUP($D24,Timeberegning!A$4:C$153,3))) ->  | G24: =IF($D24="","",IF(VLOOKUP($D24,Timeberegning!$A$4:$O$153,13)="","",VLOOKUP($D24,Timeberegning!$A$4:$O$153,13))) ->  | M24: =IF($D24="","",IF(VLOOKUP($D24,Timeberegning!$A$4:$O$101,15)="","",VLOOKUP($D24,Timeberegning!$A$4:$O$101,15))) ->  | O24: =IF($D24="","",IF(VLOOKUP($D24,Timeberegning!$A$4:$P$101,16)="","",VLOOKUP($D24,Timeberegning!$A$4:$P$101,16))) -> 
A25: 2013-04-16 | B25: Ti | E25: =IF($D25="","",IF(VLOOKUP($D25,Timeberegning!A$4:B$153,2)=0,"",VLOOKUP($D25,Timeberegning!A$4:B$153,2))) ->  | F25: =IF($D25="","",IF(VLOOKUP($D25,Timeberegning!A$4:C$153,3)="","",VLOOKUP($D25,Timeberegning!A$4:C$153,3))) ->  | G25: =IF($D25="","",IF(VLOOKUP($D25,Timeberegning!$A$4:$O$153,13)="","",VLOOKUP($D25,Timeberegning!$A$4:$O$153,13))) ->  | M25: =IF($D25="","",IF(VLOOKUP($D25,Timeberegning!$A$4:$O$101,15)="","",VLOOKUP($D25,Timeberegning!$A$4:$O$101,15))) ->  | O25: =IF($D25="","",IF(VLOOKUP($D25,Timeberegning!$A$4:$P$101,16)="","",VLOOKUP($D25,Timeberegning!$A$4:$P$101,16))) -> 
A26: 2013-04-17 | B26: On | E26: =IF($D26="","",IF(VLOOKUP($D26,Timeberegning!A$4:B$153,2)=0,"",VLOOKUP($D26,Timeberegning!A$4:B$153,2))) ->  | F26: =IF($D26="","",IF(VLOOKUP($D26,Timeberegning!A$4:C$153,3)="","",VLOOKUP($D26,Timeberegning!A$4:C$153,3))) ->  | G26: =IF($D26="","",IF(VLOOKUP($D26,Timeberegning!$A$4:$O$153,13)="","",VLOOKUP($D26,Timeberegning!$A$4:$O$153,13))) ->  | M26: =IF($D26="","",IF(VLOOKUP($D26,Timeberegning!$A$4:$O$101,15)="","",VLOOKUP($D26,Timeberegning!$A$4:$O$101,15))) ->  | O26: =IF($D26="","",IF(VLOOKUP($D26,Timeberegning!$A$4:$P$101,16)="","",VLOOKUP($D26,Timeberegning!$A$4:$P$101,16))) -> 
A27: 2013-04-18 | B27: To | E27: =IF($D27="","",IF(VLOOKUP($D27,Timeberegning!A$4:B$153,2)=0,"",VLOOKUP($D27,Timeberegning!A$4:B$153,2))) ->  | F27: =IF($D27="","",IF(VLOOKUP($D27,Timeberegning!A$4:C$153,3)="","",VLOOKUP($D27,Timeberegning!A$4:C$153,3))) ->  | G27: =IF($D27="","",IF(VLOOKUP($D27,Timeberegning!$A$4:$O$153,13)="","",VLOOKUP($D27,Timeberegning!$A$4:$O$153,13))) ->  | M27: =IF($D27="","",IF(VLOOKUP($D27,Timeberegning!$A$4:$O$101,15)="","",VLOOKUP($D27,Timeberegning!$A$4:$O$101,15))) ->  | O27: =IF($D27="","",IF(VLOOKUP($D27,Timeberegning!$A$4:$P$101,16)="","",VLOOKUP($D27,Timeberegning!$A$4:$P$101,16))) -> 
A28: 2013-04-19 | B28: Fr | E28: =IF($D28="","",IF(VLOOKUP($D28,Timeberegning!A$4:B$153,2)=0,"",VLOOKUP($D28,Timeberegning!A$4:B$153,2))) ->  | F28: =IF($D28="","",IF(VLOOKUP($D28,Timeberegning!A$4:C$153,3)="","",VLOOKUP($D28,Timeberegning!A$4:C$153,3))) ->  | G28: =IF($D28="","",IF(VLOOKUP($D28,Timeberegning!$A$4:$O$153,13)="","",VLOOKUP($D28,Timeberegning!$A$4:$O$153,13))) ->  | M28: =IF($D28="","",IF(VLOOKUP($D28,Timeberegning!$A$4:$O$101,15)="","",VLOOKUP($D28,Timeberegning!$A$4:$O$101,15))) ->  | O28: =IF($D28="","",IF(VLOOKUP($D28,Timeberegning!$A$4:$P$101,16)="","",VLOOKUP($D28,Timeberegning!$A$4:$P$101,16))) -> 
A29: 2013-04-20 | B29: Lø | E29: =IF($D29="","",IF(VLOOKUP($D29,Timeberegning!A$4:B$153,2)=0,"",VLOOKUP($D29,Timeberegning!A$4:B$153,2))) ->  | F29: =IF($D29="","",IF(VLOOKUP($D29,Timeberegning!A$4:C$153,3)="","",VLOOKUP($D29,Timeberegning!A$4:C$153,3))) ->  | G29: =IF($D29="","",IF(VLOOKUP($D29,Timeberegning!$A$4:$O$153,13)="","",VLOOKUP($D29,Timeberegning!$A$4:$O$153,13))) ->  | M29: =IF($D29="","",IF(VLOOKUP($D29,Timeberegning!$A$4:$O$101,15)="","",VLOOKUP($D29,Timeberegning!$A$4:$O$101,15))) ->  | O29: =IF($D29="","",IF(VLOOKUP($D29,Timeberegning!$A$4:$P$101,16)="","",VLOOKUP($D29,Timeberegning!$A$4:$P$101,16))) -> 
A30: 2013-04-21 | B30: Sø | E30: =IF($D30="","",IF(VLOOKUP($D30,Timeberegning!A$4:B$153,2)=0,"",VLOOKUP($D30,Timeberegning!A$4:B$153,2))) ->  | F30: =IF($D30="","",IF(VLOOKUP($D30,Timeberegning!A$4:C$153,3)="","",VLOOKUP($D30,Timeberegning!A$4:C$153,3))) ->  | G30: =IF($D30="","",IF(VLOOKUP($D30,Timeberegning!$A$4:$O$153,13)="","",VLOOKUP($D30,Timeberegning!$A$4:$O$153,13))) ->  | M30: =IF($D30="","",IF(VLOOKUP($D30,Timeberegning!$A$4:$O$101,15)="","",VLOOKUP($D30,Timeberegning!$A$4:$O$101,15))) ->  | O30: =IF($D30="","",IF(VLOOKUP($D30,Timeberegning!$A$4:$P$101,16)="","",VLOOKUP($D30,Timeberegning!$A$4:$P$101,16))) -> 
A31: 2013-04-22 | B31: Ma | E31: =IF($D31="","",IF(VLOOKUP($D31,Timeberegning!A$4:B$153,2)=0,"",VLOOKUP($D31,Timeberegning!A$4:B$153,2))) ->  | F31: =IF($D31="","",IF(VLOOKUP($D31,Timeberegning!A$4:C$153,3)="","",VLOOKUP($D31,Timeberegning!A$4:C$153,3))) ->  | G31: =IF($D31="","",IF(VLOOKUP($D31,Timeberegning!$A$4:$O$153,13)="","",VLOOKUP($D31,Timeberegning!$A$4:$O$153,13))) ->  | M31: =IF($D31="","",IF(VLOOKUP($D31,Timeberegning!$A$4:$O$101,15)="","",VLOOKUP($D31,Timeberegning!$A$4:$O$101,15))) ->  | O31: =IF($D31="","",IF(VLOOKUP($D31,Timeberegning!$A$4:$P$101,16)="","",VLOOKUP($D31,Timeberegning!$A$4:$P$101,16))) -> 
A32: 2013-04-23 | B32: Ti | E32: =IF($D32="","",IF(VLOOKUP($D32,Timeberegning!A$4:B$153,2)=0,"",VLOOKUP($D32,Timeberegning!A$4:B$153,2))) ->  | F32: =IF($D32="","",IF(VLOOKUP($D32,Timeberegning!A$4:C$153,3)="","",VLOOKUP($D32,Timeberegning!A$4:C$153,3))) ->  | G32: =IF($D32="","",IF(VLOOKUP($D32,Timeberegning!$A$4:$O$153,13)="","",VLOOKUP($D32,Timeberegning!$A$4:$O$153,13))) ->  | M32: =IF($D32="","",IF(VLOOKUP($D32,Timeberegning!$A$4:$O$101,15)="","",VLOOKUP($D32,Timeberegning!$A$4:$O$101,15))) ->  | O32: =IF($D32="","",IF(VLOOKUP($D32,Timeberegning!$A$4:$P$101,16)="","",VLOOKUP($D32,Timeberegning!$A$4:$P$101,16))) -> 
A33: 2013-04-24 | B33: On | E33: =IF($D33="","",IF(VLOOKUP($D33,Timeberegning!A$4:B$153,2)=0,"",VLOOKUP($D33,Timeberegning!A$4:B$153,2))) ->  | F33: =IF($D33="","",IF(VLOOKUP($D33,Timeberegning!A$4:C$153,3)="","",VLOOKUP($D33,Timeberegning!A$4:C$153,3))) ->  | G33: =IF($D33="","",IF(VLOOKUP($D33,Timeberegning!$A$4:$O$153,13)="","",VLOOKUP($D33,Timeberegning!$A$4:$O$153,13))) ->  | M33: =IF($D33="","",IF(VLOOKUP($D33,Timeberegning!$A$4:$O$101,15)="","",VLOOKUP($D33,Timeberegning!$A$4:$O$101,15))) ->  | O33: =IF($D33="","",IF(VLOOKUP($D33,Timeberegning!$A$4:$P$101,16)="","",VLOOKUP($D33,Timeberegning!$A$4:$P$101,16))) -> 
A34: 2013-04-25 | B34: To | E34: =IF($D34="","",IF(VLOOKUP($D34,Timeberegning!A$4:B$153,2)=0,"",VLOOKUP($D34,Timeberegning!A$4:B$153,2))) ->  | F34: =IF($D34="","",IF(VLOOKUP($D34,Timeberegning!A$4:C$153,3)="","",VLOOKUP($D34,Timeberegning!A$4:C$153,3))) ->  | G34: =IF($D34="","",IF(VLOOKUP($D34,Timeberegning!$A$4:$O$153,13)="","",VLOOKUP($D34,Timeberegning!$A$4:$O$153,13))) ->  | M34: =IF($D34="","",IF(VLOOKUP($D34,Timeberegning!$A$4:$O$101,15)="","",VLOOKUP($D34,Timeberegning!$A$4:$O$101,15))) ->  | O34: =IF($D34="","",IF(VLOOKUP($D34,Timeberegning!$A$4:$P$101,16)="","",VLOOKUP($D34,Timeberegning!$A$4:$P$101,16))) -> 
A35: 2013-04-26 | B35: Fr | C35: Store Bededag | E35: =IF($D35="","",IF(VLOOKUP($D35,Timeberegning!A$4:B$153,2)=0,"",VLOOKUP($D35,Timeberegning!A$4:B$153,2))) ->  | F35: =IF($D35="","",IF(VLOOKUP($D35,Timeberegning!A$4:C$153,3)="","",VLOOKUP($D35,Timeberegning!A$4:C$153,3))) ->  | G35: =IF($D35="","",IF(VLOOKUP($D35,Timeberegning!$A$4:$O$153,13)="","",VLOOKUP($D35,Timeberegning!$A$4:$O$153,13))) ->  | M35: =IF($D35="","",IF(VLOOKUP($D35,Timeberegning!$A$4:$O$101,15)="","",VLOOKUP($D35,Timeberegning!$A$4:$O$101,15))) ->  | O35: =IF($D35="","",IF(VLOOKUP($D35,Timeberegning!$A$4:$P$101,16)="","",VLOOKUP($D35,Timeberegning!$A$4:$P$101,16))) -> 
A36: 2013-04-27 | B36: Lø | E36: =IF($D36="","",IF(VLOOKUP($D36,Timeberegning!A$4:B$153,2)=0,"",VLOOKUP($D36,Timeberegning!A$4:B$153,2))) ->  | F36: =IF($D36="","",IF(VLOOKUP($D36,Timeberegning!A$4:C$153,3)="","",VLOOKUP($D36,Timeberegning!A$4:C$153,3))) ->  | G36: =IF($D36="","",IF(VLOOKUP($D36,Timeberegning!$A$4:$O$153,13)="","",VLOOKUP($D36,Timeberegning!$A$4:$O$153,13))) ->  | M36: =IF($D36="","",IF(VLOOKUP($D36,Timeberegning!$A$4:$O$101,15)="","",VLOOKUP($D36,Timeberegning!$A$4:$O$101,15))) ->  | O36: =IF($D36="","",IF(VLOOKUP($D36,Timeberegning!$A$4:$P$101,16)="","",VLOOKUP($D36,Timeberegning!$A$4:$P$101,16))) -> 
A37: 2013-04-28 | B37: Sø | E37: =IF($D37="","",IF(VLOOKUP($D37,Timeberegning!A$4:B$153,2)=0,"",VLOOKUP($D37,Timeberegning!A$4:B$153,2))) ->  | F37: =IF($D37="","",IF(VLOOKUP($D37,Timeberegning!A$4:C$153,3)="","",VLOOKUP($D37,Timeberegning!A$4:C$153,3))) ->  | G37: =IF($D37="","",IF(VLOOKUP($D37,Timeberegning!$A$4:$O$153,13)="","",VLOOKUP($D37,Timeberegning!$A$4:$O$153,13))) ->  | M37: =IF($D37="","",IF(VLOOKUP($D37,Timeberegning!$A$4:$O$101,15)="","",VLOOKUP($D37,Timeberegning!$A$4:$O$101,15))) ->  | O37: =IF($D37="","",IF(VLOOKUP($D37,Timeberegning!$A$4:$P$101,16)="","",VLOOKUP($D37,Timeberegning!$A$4:$P$101,16))) -> 
A38: 2013-04-29 | B38: =IF(A38="","",PROPER(TEXT(A38,"ddd"))) -> Ma | E38: =IF($D38="","",IF(VLOOKUP($D38,Timeberegning!A$4:B$153,2)=0,"",VLOOKUP($D38,Timeberegning!A$4:B$153,2))) ->  | F38: =IF($D38="","",IF(VLOOKUP($D38,Timeberegning!A$4:C$153,3)="","",VLOOKUP($D38,Timeberegning!A$4:C$153,3))) ->  | G38: =IF($D38="","",IF(VLOOKUP($D38,Timeberegning!$A$4:$O$153,13)="","",VLOOKUP($D38,Timeberegning!$A$4:$O$153,13))) ->  | M38: =IF($D38="","",IF(VLOOKUP($D38,Timeberegning!$A$4:$O$101,15)="","",VLOOKUP($D38,Timeberegning!$A$4:$O$101,15))) ->  | O38: =IF($D38="","",IF(VLOOKUP($D38,Timeberegning!$A$4:$P$101,16)="","",VLOOKUP($D38,Timeberegning!$A$4:$P$101,16))) -> 
A39: 2013-04-30 | B39: =IF(A39="","",PROPER(TEXT(A39,"ddd"))) -> Ti | E39: =IF($D39="","",IF(VLOOKUP($D39,Timeberegning!A$4:B$153,2)=0,"",VLOOKUP($D39,Timeberegning!A$4:B$153,2))) ->  | F39: =IF($D39="","",IF(VLOOKUP($D39,Timeberegning!A$4:C$153,3)="","",VLOOKUP($D39,Timeberegning!A$4:C$153,3))) ->  | G39: =IF($D39="","",IF(VLOOKUP($D39,Timeberegning!$A$4:$O$153,13)="","",VLOOKUP($D39,Timeberegning!$A$4:$O$153,13))) ->  | M39: =IF($D39="","",IF(VLOOKUP($D39,Timeberegning!$A$4:$O$101,15)="","",VLOOKUP($D39,Timeberegning!$A$4:$O$101,15))) ->  | O39: =IF($D39="","",IF(VLOOKUP($D39,Timeberegning!$A$4:$P$101,16)="","",VLOOKUP($D39,Timeberegning!$A$4:$P$101,16))) -> 
E40: =IF($D40="","",IF(VLOOKUP($D40,Timeberegning!A$4:B$153,2)=0,"",VLOOKUP($D40,Timeberegning!A$4:B$153,2))) ->  | F40: =IF($D40="","",IF(VLOOKUP($D40,Timeberegning!A$4:C$153,3)="","",VLOOKUP($D40,Timeberegning!A$4:C$153,3))) ->  | G40: =IF($D40="","",IF(VLOOKUP($D40,Timeberegning!$A$4:$O$153,13)="","",VLOOKUP($D40,Timeberegning!$A$4:$O$153,13))) ->  | M40: =IF($D40="","",IF(VLOOKUP($D40,Timeberegning!$A$4:$O$101,15)="","",VLOOKUP($D40,Timeberegning!$A$4:$O$101,15))) ->  | O40: =IF($D40="","",IF(VLOOKUP($D40,Timeberegning!$A$4:$P$101,16)="","",VLOOKUP($D40,Timeberegning!$A$4:$P$101,16))) -> 
A41: Total timer | G41: =IF(SUM(G15:G40)<>"0",SUM(G10:G40),"") -> 0.9173611111 | H41: =IF(SUM(H10:H40)<>"0",SUM(H10:H40),"") -> 0 | I41: 0 | J41: 0 | K41: 0.0625 | L41: 0 | M41: 0 | N41: =SUM(N10:N40) -> 0 | O41: =SUM(O10:O40) -> 0
A42: Timer 1/100 | G42: =IF(G41<>"",ROUND(G41*24,2),"") -> 22.02 | H42: =IF(H41<>"",ROUND(H41*24,2),"") -> 0 | I42: 0 | J42: 0 | K42: 1.5 | L42: 0 | N42: 0 | O42: 0
A43: Satser | G43: =Satser!B7 -> 125.76 | H43: =Satser!B9 -> 59.81 | I43: =Satser!B12 -> 119.62 | J43: 18.8 | K43: 21.81 | L43: 28.68 | M43: 67
G44: =IF(G41<>"",G42*G43,"") -> 2769.2352 | H44: =IF(H41<>"",H42*H43,"") -> 0 | I44: 0 | J44: 0 | K44: 32.715 | L44: 0 | M44: =IF(M41<>"",M41*M43,"") -> 0
A46: Lønart
A47: 3025 | G47: =G41 -> 0.9173611111
A48: 3425 | G48: =H41 -> 0
A49: 3426 | G49: =I41 -> 0
A50: Timer | G50: =SUM(G47:G49) -> 0.9173611111 | H50: =IF(G50<>"",ROUND(G50*24,2),"") -> 22.02
H51: =G43*H50 -> 2769.2352

Sheet Satser
A3: Timeløn | B3: 119.62
A4: specielt tillæg | B4: 1.19
A5: Chauffør tillæg | B5: 4.95
A7: Samlet timeløn | B7: =SUM(B3:B5) -> 125.76
A9: overtidstillæg 50% | B9: 59.81
A10: pr. time | B10: =B7+B9 -> 185.57
A12: overtidstillæg 100% | B12: 119.62
A13: pr. time | B13: =B12+B7 -> 245.38
A15: Aftentillæg | B15: 18.8 | D15: Arbejde mellem 18:00 og 24:00, lørdag dog fra kl 14:00
A16: Nattillæg | B16: 21.81 | D16: Arbejde mellem 24:00 og 06:00
A17: Søndagstillæg | B17: 28.68
A19: Ledbus | B19: 3
A20: Trafiftælling | B20: 5
A21: Delt tjeneste | B21: 67 | D21: pr. arbejdsdag
A23: norm man-torsdag | B23: 0.3229166667
A24: norm fredag | B24: 0.25

Sheet Timeberegning
A1: Time beregning:
A2: Betalt pause ved vagt over 5 timer | H2: 00:25:00 | I2: minutter | J2: 00:00:00 | K2: 06:00:00 | L2: 18:00:00 | M2: 14:00:00
A3: vagt | B3: start | C3: slut | D3: Tid | E3: Pause 1 start | F3: Pause 1 start | G3: Tid | H3: Pause 2 start | I3: Pause 2 slut | J3: Tid | K3: Samlet pause | L3: Selv betalt pause | M3: Beregnet arbejdstid | N3: 1/100 | O3: Delevagt | P3: Afholdt afspadsering
A4: 111 | B4: 05:54:00 | C4: 14:57:00 | D4: =C4-B4+(B4>C4) -> 09:03:00 | E4: 10:34:00 | F4: 11:08:00 | G4: =TEXT(F4-E4,"t:mm") -> 0:34 | J4: =I4-H4 -> 00:00:00 | K4: =G4+J4 -> 00:34:00 | L4: =IF(K4>H$2,K4-H$2,0) -> 00:09:00 | M4: =D4-L4 -> 08:54:00 | N4: =24*M4 -> 8.9
A5: 112 | B5: 10:06:00 | C5: 16:38:00 | D5: =C5-B5+(B5>C5) -> 06:32:00 | E5: 14:00:00 | F5: 14:46:00 | G5: 0:46 | J5: =I5-H5 -> 00:00:00 | K5: =G5+J5 -> 00:46:00 | L5: =IF(K5>H$2,K5-H$2,0) -> 00:21:00 | M5: =D5-L5 -> 06:11:00 | N5: =24*M5 -> 6.183333333
A6: 113 | B6: 07:55:00 | C6: 16:19:00 | D6: =C6-B6+(B6>C6) -> 08:24:00 | G6: 0:00 | J6: 00:00:00 | K6: 00:00:00 | L6: 00:00:00 | M6: 08:24:00 | N6: 8.4
A7: 114 | B7: 09:48:00 | C7: 17:55:00 | D7: =C7-B7+(B7>C7) -> 08:07:00 | E7: 12:34:00 | F7: 12:58:00 | G7: 0:24 | H7: 15:04:00 | I7: 16:01:00 | J7: 00:57:00 | K7: 01:21:00 | L7: 00:56:00 | M7: 07:11:00 | N7: 7.183333333
A8: 121 | B8: 04:36:00 | C8: 11:24:00 | D8: =C8-B8+(B8>C8) -> 06:48:00 | E8: 08:30:00 | F8: 08:58:00 | G8: 0:28 | J8: 00:00:00 | K8: 00:28:00 | L8: 00:03:00 | M8: 06:45:00 | N8: 6.75
A9: 122 | B9: 04:36:00 | C9: 11:58:00 | D9: 07:22:00 | E9: 08:32:00 | F9: 08:51:00 | G9: 0:19 | H9: 09:22:00 | I9: 10:03:00 | J9: 00:41:00 | K9: 01:00:00 | L9: 00:35:00 | M9: 06:47:00 | N9: 6.783333333
A10: 123 | B10: 04:48:00 | C10: 12:24:00 | D10: 07:36:00 | E10: 06:32:00 | F10: 06:58:00 | G10: 0:26 | H10: 09:04:00 | I10: 09:43:00 | J10: 00:39:00 | K10: 01:05:00 | L10: 00:40:00 | M10: 06:56:00 | N10: 6.933333333
A11: 124 | B11: 05:20:00 | C11: 12:53:00 | D11: 07:33:00 | E11: 06:32:00 | F11: 07:01:00 | G11: 0:29 | J11: 00:00:00 | K11: 00:29:00 | L11: 00:04:00 | M11: 07:29:00 | N11: 7.483333333
A12: 125 | B12: 05:44:00 | C12: 14:53:00 | D12: 09:09:00 | E12: 09:52:00 | F12: 10:58:00 | G12: 1:06 | J12: 00:00:00 | K12: 01:06:00 | L12: 00:41:00 | M12: 08:28:00 | N12: 8.466666667
A13: 126 | B13: 05:56:00 | C13: 09:55:00 | D13: 03:59:00 | G13: 0:00 | J13: 00:00:00 | K13: =IF(G13="","",G13+J13) -> 00:00:00 | L13: =IF(K13="","",IF(K13>H$2,K13-H$2,0)) -> 00:00:00 | M13: =D13-L13 -> 03:59:00 | N13: =24*M13 -> 3.983333333
A14: 127 | B14: 05:55:00 | C14: 16:04:00 | D14: 10:09:00 | E14: 07:56:00 | F14: 08:56:00 | G14: 1:00 | H14: 11:02:00 | I14: 14:07:00 | J14: 03:05:00 | K14: =IF(G14="","",G14+J14) -> 04:05:00 | L14: =IF(K14="","",IF(K14>H$2,K14-H$2,0)) -> 03:40:00 | M14: 06:29:00 | N14: 6.483333333 | O14: 1
A15: 128 | B15: 05:58:00 | C15: 17:54:00 | D15: 11:56:00 | E15: 09:53:00 | F15: 13:07:00 | G15: =TEXT(F15-E15,"t:mm") -> 3:14 | H15: 15:02:00 | I15: 15:58:00 | J15: 00:56:00 | K15: 04:10:00 | L15: 03:45:00 | M15: 08:11:00 | N15: 8.183333333 | O15: 1
A16: 129 | B16: 05:59:00 | C16: 16:55:00 | D16: 10:56:00 | E16: 10:04:00 | F16: 13:43:00 | G16: 3:39 | H16: 14:17:00 | I16: 15:01:00 | J16: 00:44:00 | K16: 04:23:00 | L16: 03:58:00 | M16: 06:58:00 | N16: 6.966666667 | O16: 1
A17: 130 | B17: 06:00:00 | C17: 17:06:00 | D17: 11:06:00 | E17: 10:02:00 | F17: 11:58:00 | G17: 1:56 | H17: 13:53:00 | I17: 14:58:00 | J17: 01:05:00 | K17: 03:01:00 | L17: 02:36:00 | M17: 08:30:00 | N17: 8.5 | O17: 1
A18: 131 | B18: 06:55:00 | C18: 14:06:00 | D18: 07:11:00 | E18: 08:52:00 | F18: 09:58:00 | G18: 1:06 | J18: 00:00:00 | K18: 01:06:00 | L18: 00:41:00 | M18: 06:30:00 | N18: 6.5
A19: 132 | B19: 06:55:00 | C19: 15:55:00 | D19: 09:00:00 | E19: 08:51:00 | F19: 09:58:00 | G19: 1:07 | J19: 00:00:00 | K19: 01:07:00 | L19: 00:42:00 | M19: 08:18:00 | N19: 8.3
A20: 133 | B20: 07:05:00 | C20: 16:00:00 | D20: 08:55:00 | E20: 09:00:00 | F20: 10:01:00 | G20: 1:01 | J20: 00:00:00 | K20: 01:01:00 | L20: 00:36:00 | M20: 08:19:00 | N20: 8.316666667
A21: 134 | B21: 07:07:00 | C21: 16:16:00 | D21: 09:09:00 | E21: 10:52:00 | F21: 11:52:00 | G21: 1:00 | J21: 00:00:00 | K21: 01:00:00 | L21: 00:35:00 | M21: 08:34:00 | N21: 8.566666667
A22: 135 | B22: 10:55:00 | C22: 16:06:00 | D22: 05:11:00 | E22: 13:04:00 | F22: 13:58:00 | G22: 0:54 | J22: 00:00:00 | K22: 00:54:00 | L22: 00:29:00 | M22: 04:42:00 | N22: 4.7
A23: 136 | B23: 10:58:00 | C23: 18:06:00 | D23: 07:08:00 | E23: 12:53:00 | F23: 13:58:00 | G23: 1:05 | J23: 00:00:00 | K23: 01:05:00 | L23: 00:40:00 | M23: 06:28:00 | N23: 6.466666667
A24: 137 | B24: 11:07:00 | C24: 20:32:00 | D24: 09:25:00 | E24: 14:52:00 | F24: 15:58:00 | G24: 1:06 | J24: 00:00:00 | K24: 01:06:00 | L24: 00:41:00 | M24: 08:44:00 | N24: 8.733333333
A25: 138 | B25: 11:55:00 | C25: 20:55:00 | D25: 09:00:00 | E25: 15:52:00 | F25: 16:58:00 | G25: 1:06 | J25: 00:00:00 | K25: 01:06:00 | L25: 00:41:00 | M25: 08:19:00 | N25: 8.316666667
A26: 138X | B26: 11:55:00 | C26: 15:54:00 | D26: 03:59:00 | G26: 0:00 | J26: 00:00:00 | K26: 00:00:00 | L26: 00:00:00 | M26: 03:59:00 | N26: 3.983333333
A27: 138Y | B27: 16:55:00 | C27: 20:55:00 | D27: 04:00:00 | G27: 0:00 | J27: 00:00:00 | K27: 00:00:00 | L27: 00:00:00 | M27: 04:00:00 | N27: 4
A28: 139 | B28: 13:05:00 | C28: 19:55:00 | D28: 06:50:00 | E28: 17:02:00 | F28: 18:01:00 | G28: 0:59 | J28: 00:00:00 | K28: 00:59:00 | L28: 00:34:00 | M28: 06:16:00 | N28: 6.266666667
A29: 140 | B29: 14:55:00 | C29: 22:22:00 | D29: 07:27:00 | E29: 17:22:00 | F29: 17:58:00 | G29: 0:36 | J29: 00:00:00 | K29: 00:36:00 | L29: 00:11:00 | M29: 07:16:00 | N29: 7.266666667
A30: 141 | B30: 14:55:00 | C30: 21:23:00 | D30: 06:28:00 | E30: 18:51:00 | F30: 19:28:00 | G30: 0:37 | J30: 00:00:00 | K30: 00:37:00 | L30: 00:12:00 | M30: 06:16:00 | N30: 6.266666667
A31: 142 | B31: 15:05:00 | C31: 00:22:00 | D31: 09:17:00 | E31: 19:02:00 | F31: 20:13:00 | G31: 1:11 | J31: 00:00:00 | K31: 01:11:00 | L31: 00:46:00 | M31: 08:31:00 | N31: 8.516666667
A32: 143 | B32: 16:05:00 | C32: 23:12:00 | D32: 07:07:00 | E32: 18:00:00 | F32: 18:28:00 | G32: 0:28 | H32: 20:52:00 | I32: 21:16:00 | J32: 00:24:00 | K32: 00:52:00 | L32: 00:27:00 | M32: 06:40:00 | N32: 6.666666667
A33: 143F | B33: 16:05:00 | C33: 01:47:00 | D33: 09:42:00 | E33: 18:00:00 | F33: 18:28:00 | G33: 0:28 | H33: 23:10:00 | I33: 23:53:00 | J33: 00:43:00 | K33: =G33+J33 -> 01:11:00 | L33: =IF(K33>H$2,K33-H$2,0) -> 00:46:00 | M33: =D33-L33 -> 08:56:00 | N33: =24*M33 -> 8.933333333
A34: 144 | B34: 16:07:00 | C34: 23:23:00 | D34: 07:16:00 | E34: 18:02:00 | F34: 19:16:00 | G34: 1:14 | J34: 00:00:00 | K34: 01:14:00 | L34: 00:49:00 | M34: 06:27:00 | N34: 6.45
A35: 144F | B35: 16:07:00 | C35: 01:47:00 | D35: 09:40:00 | E35: 18:02:00 | F35: 19:16:00 | G35: 1:14 | H35: 23:21:00 | I35: 23:53:00 | J35: =I35-H35 -> 00:32:00 | K35: =G35+J35 -> 01:46:00 | L35: =IF(K35>H$2,K35-H$2,0) -> 01:21:00 | M35: =D35-L35 -> 08:19:00 | N35: =24*M35 -> 8.316666667
A36: 145 | B36: 16:58:00 | C36: 00:42:00 | D36: 07:44:00 | E36: 19:22:00 | F36: 20:13:00 | G36: 0:51 | J36: 00:00:00 | K36: 00:51:00 | L36: 00:26:00 | M36: 07:18:00 | N36: 7.3
A37: 146 | B37: 17:05:00 | C37: 01:10:00 | D37: 08:05:00 | E37: 19:00:00 | F37: 19:28:00 | G37: 0:28 | H37: 22:22:00 | I37: 23:00:00 | J37: 00:38:00 | K37: 01:06:00 | L37: 00:41:00 | M37: 07:24:00 | N37: 7.4
A38: 147 | B38: 17:25:00 | C38: 01:26:00 | D38: 08:01:00 | E38: 19:22:00 | F38: 19:51:00 | G38: 0:29 | H38: 22:20:00 | I38: 22:55:00 | J38: 00:35:00 | K38: 01:04:00 | L38: 00:39:00 | M38: 07:22:00 | N38: 7.366666667
A39: 148 | B39: 06:25:00 | C39: 17:25:00 | D39: 11:00:00 | E39: 08:25:00 | F39: 13:55:00 | G39: 5:30 | J39: 00:00:00 | K39: 05:30:00 | L39: 05:05:00 | M39: 05:55:00 | N39: 5.916666667 | O39: 1
A40: 601 | B40: 04:36:00 | C40: 12:24:00 | D40: 07:48:00 | E40: 06:32:00 | F40: 07:08:00 | G40: 0:36 | H40: 09:36:00 | I40: 10:01:00 | J40: 00:25:00 | K40: 01:01:00 | L40: 00:36:00 | M40: 07:12:00 | N40: 7.2
A41: 602 | B41: 04:36:00 | C41: 12:53:00 | D41: 08:17:00 | E41: 06:32:00 | F41: 06:58:00 | G41: 0:26 | H41: 09:58:00 | I41: 10:33:00 | J41: 00:35:00 | K41: 01:01:00 | L41: 00:36:00 | M41: 07:41:00 | N41: 7.683333333
A42: 603 | B42: 04:48:00 | C42: 12:02:00 | D42: 07:14:00 | E42: 06:32:00 | F42: 06:58:00 | G42: 0:26 | H42: 09:33:00 | I42: 10:08:00 | J42: 00:35:00 | K42: 01:01:00 | L42: 00:36:00 | M42: 06:38:00 | N42: 6.633333333
A43: 604 | B43: 05:20:00 | C43: 14:06:00 | D43: 08:46:00 | E43: 06:32:00 | F43: 07:01:00 | G43: 0:29 | H43: 10:51:00 | I43: 11:26:00 | J43: 00:35:00 | K43: 01:04:00 | L43: 00:39:00 | M43: 08:07:00 | N43: 8.116666667
A44: 605 | B44: 05:58:00 | C44: 12:54:00 | D44: 06:56:00 | E44: 06:32:00 | F44: 06:58:00 | G44: 0:26 | H44: 10:22:00 | I44: 10:58:00 | J44: 00:36:00 | K44: 01:02:00 | L44: 00:37:00 | M44: 06:19:00 | N44: 6.316666667
A45: 606 | B45: 06:07:00 | C45: 15:15:00 | D45: 09:08:00 | E45: 12:04:00 | F45: 12:51:00 | G45: 0:47 | J45: 00:00:00 | K45: 00:47:00 | L45: 00:22:00 | M45: 08:46:00 | N45: 8.766666667
A46: 607 | B46: 07:55:00 | C46: 15:24:00 | D46: 07:29:00 | E46: 12:02:00 | F46: 12:27:00 | G46: 0:25 | J46: 00:00:00 | K46: 00:25:00 | L46: 00:00:00 | M46: 07:29:00 | N46: 7.483333333
A47: 608 | B47: 08:07:00 | C47: 16:04:00 | D47: 07:57:00 | E47: 11:22:00 | F47: 12:08:00 | G47: 0:46 | J47: 00:00:00 | K47: 00:46:00 | L47: 00:21:00 | M47: 07:36:00 | N47: 7.6
A48: 609 | B48: 08:55:00 | C48: 17:05:00 | D48: 08:10:00 | E48: 11:26:00 | F48: 11:51:00 | G48: 0:25 | H48: 14:51:00 | I48: 15:11:00 | J48: 00:20:00 | K48: 00:45:00 | L48: 00:20:00 | M48: 07:50:00 | N48: 7.833333333
A49: 610 | B49: 12:07:00 | C49: 18:44:00 | D49: 06:37:00 | E49: 16:00:00 | F49: 16:25:00 | G49: 0:25 | J49: 00:00:00 | K49: 00:25:00 | L49: 00:00:00 | M49: 06:37:00 | N49: 6.616666667
A50: 611 | B50: 13:55:00 | C50: 22:22:00 | D50: 08:27:00 | E50: 18:00:00 | F50: 18:28:00 | G50: 0:28 | J50: 00:00:00 | K50: 00:28:00 | L50: 00:03:00 | M50: 08:24:00 | N50: 8.4
A51: 612 | B51: 14:55:00 | C51: 00:22:00 | D51: 09:27:00 | E51: 18:52:00 | F51: 19:28:00 | G51: 0:36 | H51: 21:21:00 | I51: 21:51:00 | J51: 00:30:00 | K51: 01:06:00 | L51: 00:41:00 | M51: 08:46:00 | N51: 8.766666667
A52: 613 | B52: 14:55:00 | C52: 00:42:00 | D52: 09:47:00 | E52: 19:22:00 | F52: 20:13:00 | G52: 0:51 | J52: 00:00:00 | K52: 00:51:00 | L52: 00:26:00 | M52: 09:21:00 | N52: 9.35
A53: 614 | B53: 15:55:00 | C53: 01:10:00 | D53: 09:15:00 | E53: 18:04:00 | F53: 18:31:00 | G53: 0:27 | H53: 22:20:00 | I53: 22:55:00 | J53: 00:35:00 | K53: 01:02:00 | L53: 00:37:00 | M53: 08:38:00 | N53: 8.633333333
A54: 615 | B54: 16:48:00 | C54: 01:47:00 | D54: 08:59:00 | E54: 20:52:00 | F54: 21:16:00 | G54: 0:24 | H54: 23:10:00 | I54: 23:53:00 | J54: 00:43:00 | K54: 01:07:00 | L54: 00:42:00 | M54: 08:17:00 | N54: 8.283333333
A55: 616 | B55: 16:55:00 | C55: 01:47:00 | D55: 08:52:00 | E55: 18:51:00 | F55: 19:26:00 | G55: 0:35 | H55: 23:21:00 | I55: 23:53:00 | J55: 00:32:00 | K55: 01:07:00 | L55: 00:42:00 | M55: 08:10:00 | N55: 8.166666667
A56: 617 | B56: 18:35:00 | C56: 01:26:00 | D56: 06:51:00 | E56: 22:20:00 | F56: 22:45:00 | G56: 0:25 | J56: 00:00:00 | K56: 00:25:00 | L56: 00:00:00 | M56: 06:51:00 | N56: 6.85
A57: 701 | B57: 04:36:00 | C57: 12:24:00 | D57: 07:48:00 | E57: 06:32:00 | F57: 07:08:00 | G57: 0:36 | H57: 09:36:00 | I57: 10:01:00 | J57: 00:25:00 | K57: 01:01:00 | L57: 00:36:00 | M57: 07:12:00 | N57: 7.2
A58: 702 | B58: 04:36:00 | C58: 12:53:00 | D58: 08:17:00 | E58: 06:32:00 | F58: 06:58:00 | G58: 0:26 | H58: 09:58:00 | I58: 10:33:00 | J58: 00:35:00 | K58: 01:01:00 | L58: 00:36:00 | M58: 07:41:00 | N58: 7.683333333
A59: 703 | B59: 04:48:00 | C59: 12:02:00 | D59: 07:14:00 | E59: 06:32:00 | F59: 06:58:00 | G59: 0:26 | H59: 09:33:00 | I59: 10:08:00 | J59: 00:35:00 | K59: 01:01:00 | L59: 00:36:00 | M59: 06:38:00 | N59: 6.633333333
A60: 704 | B60: 05:20:00 | C60: 14:06:00 | D60: 08:46:00 | E60: 06:32:00 | F60: 07:01:00 | G60: 0:29 | H60: 10:51:00 | I60: 11:26:00 | J60: 00:35:00 | K60: 01:04:00 | L60: 00:39:00 | M60: 08:07:00 | N60: 8.116666667
A61: 705 | B61: 05:58:00 | C61: 12:54:00 | D61: 06:56:00 | E61: 06:32:00 | F61: 06:58:00 | G61: 0:26 | H61: 10:22:00 | I61: 10:58:00 | J61: 00:36:00 | K61: 01:02:00 | L61: 00:37:00 | M61: 06:19:00 | N61: 6.316666667
A62: 706 | B62: 06:07:00 | C62: 15:15:00 | D62: 09:08:00 | E62: 12:04:00 | F62: 12:51:00 | G62: 0:47 | J62: 00:00:00 | K62: 00:47:00 | L62: 00:22:00 | M62: 08:46:00 | N62: 8.766666667
A63: 707 | B63: 07:55:00 | C63: 15:24:00 | D63: 07:29:00 | E63: 12:02:00 | F63: 12:27:00 | G63: 0:25 | J63: 00:00:00 | K63: 00:25:00 | L63: 00:00:00 | M63: 07:29:00 | N63: 7.483333333
A64: 708 | B64: 08:07:00 | C64: 16:04:00 | D64: 07:57:00 | E64: 11:22:00 | F64: 12:08:00 | G64: 0:46 | J64: 00:00:00 | K64: 00:46:00 | L64: 00:21:00 | M64: 07:36:00 | N64: 7.6
A65: 709 | B65: 08:55:00 | C65: 17:05:00 | D65: 08:10:00 | E65: 11:26:00 | F65: 11:51:00 | G65: 0:25 | H65: 14:51:00 | I65: 15:11:00 | J65: 00:20:00 | K65: 00:45:00 | L65: 00:20:00 | M65: 07:50:00 | N65: 7.833333333
A66: 710 | B66: 12:07:00 | C66: 18:44:00 | D66: 06:37:00 | E66: 16:00:00 | F66: 16:25:00 | G66: 0:25 | J66: 00:00:00 | K66: 00:25:00 | L66: 00:00:00 | M66: 06:37:00 | N66: 6.616666667
A67: 711 | B67: 13:55:00 | C67: 22:22:00 | D67: 08:27:00 | E67: 18:00:00 | F67: 18:28:00 | G67: 0:28 | J67: 00:00:00 | K67: 00:28:00 | L67: 00:03:00 | M67: 08:24:00 | N67: 8.4
A68: 712 | B68: 14:55:00 | C68: 00:22:00 | D68: 09:27:00 | E68: 18:52:00 | F68: 19:28:00 | G68: 0:36 | H68: 21:21:00 | I68: 21:51:00 | J68: 00:30:00 | K68: 01:06:00 | L68: 00:41:00 | M68: 08:46:00 | N68: 8.766666667
A69: 713 | B69: 14:55:00 | C69: 00:42:00 | D69: 09:47:00 | E69: 19:22:00 | F69: 20:13:00 | G69: 0:51 | J69: 00:00:00 | K69: 00:51:00 | L69: 00:26:00 | M69: 09:21:00 | N69: 9.35
A70: 714 | B70: 15:55:00 | C70: 01:10:00 | D70: 09:15:00 | E70: 18:04:00 | F70: 18:31:00 | G70: 0:27 | H70: 22:20:00 | I70: 22:55:00 | J70: 00:35:00 | K70: 01:02:00 | L70: 00:37:00 | M70: 08:38:00 | N70: 8.633333333
A71: 715 | B71: 16:48:00 | C71: 01:47:00 | D71: 08:59:00 | E71: 20:52:00 | F71: 21:16:00 | G71: 0:24 | H71: 23:10:00 | I71: 23:53:00 | J71: 00:43:00 | K71: 01:07:00 | L71: 00:42:00 | M71: 08:17:00 | N71: 8.283333333
A72: 716 | B72: 16:55:00 | C72: 01:47:00 | D72: 08:52:00 | E72: 18:51:00 | F72: 19:26:00 | G72: 0:35 | H72: 23:21:00 | I72: 23:53:00 | J72: =I72-H72 -> 00:32:00 | K72: =G72+J72 -> 01:07:00 | L72: =IF(K72>H$2,K72-H$2,0) -> 00:42:00 | M72: 08:10:00 | N72: 8.166666667
A73: 717 | B73: 18:35:00 | C73: 01:26:00 | D73: 06:51:00 | E73: 22:20:00 | F73: 22:45:00 | G73: 0:25 | J73: 00:00:00 | K73: 00:25:00 | L73: 00:00:00 | M73: 06:51:00 | N73: 6.85
A75: afsp. | P75: 07:24:00
A76: x
A77: Fri
A78: ferie

Sheet Ark2
A1: start | B1: slut | D1: tid | E1: pause start | F1: pause slut | G1: tid
A2: 13:55:00 | B2: 22:11:00 | D2: =B2-A2 -> 0.3444444444 | E2: 19:52:00 | F2: 20:17:00 | G2: =TEXT(F2-E2,"t:mm") -> 0:25 | I2: =TEXT(D2-G2,"t:mm") -> 7:51
A3: 14:10:00 | B3: 1 | D3: =B3-A3 -> 09:50:00
A4: 00:00:00 | B4: 00:11:00 | D4: =B4-A4 -> 00:11:00
A5: 2010-06-10T14:10:00 | B5: 2010-06-11T00:11:00 | D5: =B5-A5 -> 10:01:00
D6: =SUM(D2:D5) -> 1.179166667 | E6: =D6*24 -> 28.3

Sheet Ark3
